Body Name,Body,Service division categorisation,Expense Type,Date paid,Transaction Reference,Net,Supplier Name,Redacted/Excluded
East Lindsey District Council,http://statistics.data.gov.uk/id/local-authority/32UC,DEPT,Performers and Entertainers Fees,14/06/12,IJ00010659,550,ADASTRA, 
East Lindsey District Council,http://statistics.data.gov.uk/id/local-authority/32UC,DEPT,Buildings Maintenance - Responsive,14/06/12,IJ00010679,981.7,ALLDREAD MAINTENANCE SERVICES, 
East Lindsey District Council,http://statistics.data.gov.uk/id/local-authority/32UC,Capital WIP,Grants and Contributions to Outside Bodies- No Service Recei,14/06/12,IJ00010410,4423.98,ANDREW BLADES BUILDING SERVICES LTD, 
East Lindsey District Council,http://statistics.data.gov.uk/id/local-authority/32UC,DEPT,Other Revenue Grants Reimbursements & Contributions (Govt),14/06/12,IJ00010410,-395,ANDREW BLADES BUILDING SERVICES LTD, 
East Lindsey District Council,http://statistics.data.gov.uk/id/local-authority/32UC,DEPT,Water and Sewerage Charges,14/06/12,IJ00010691,2237.95,ANGLIAN WATER, 
East Lindsey District Council,http://statistics.data.gov.uk/id/local-authority/32UC,DEPT,Materials and Consumables,14/06/12,IJ00010657,632,ASHBY GRASS CARE, 
East Lindsey District Council,http://statistics.data.gov.uk/id/local-authority/32UC,DEPT,Computer Hardware Purchase,14/06/12,IJ00010516,1149.8,AXIAL SYSTEMS LTD, 
East Lindsey District Council,http://statistics.data.gov.uk/id/local-authority/32UC,Capital WIP,Grants and Contributions to Outside Bodies- No Service Recei,14/06/12,IJ00010411,2250,BARCLAYS PARTNER FINANCE, 
East Lindsey District Council,http://statistics.data.gov.uk/id/local-authority/32UC,Development Control,Planning Application Fees,14/06/12,IJ00010458,670,BEACHLANDS LEISURE, 
East Lindsey District Council,http://statistics.data.gov.uk/id/local-authority/32UC,DEPT,Bed and Breakfast Accommodation (Homelessness Service),14/06/12,IJ00010755,880,BEESTON LODGE HOTEL, 
East Lindsey District Council,http://statistics.data.gov.uk/id/local-authority/32UC,DEPT,Other Miscellaneous Expenses,14/06/12,IJ00010722,11038.5,BT REDCARE, 
East Lindsey District Council,http://statistics.data.gov.uk/id/local-authority/32UC,DEPT,Grants and Contributions to Outside Bodies- No Service Recei,14/06/12,IJ00010479,1450,CBS OUTDOOR LIMITED, 
East Lindsey District Council,http://statistics.data.gov.uk/id/local-authority/32UC,DEPT,Advertising - Events,14/06/12,IJ00010621,780,CBS OUTDOOR LIMITED, 
East Lindsey District Council,http://statistics.data.gov.uk/id/local-authority/32UC,DEPT,Court Costs,14/06/12,IJ00010415,3798,CENTRAL FINANCE UNIT, 
East Lindsey District Council,http://statistics.data.gov.uk/id/local-authority/32UC,DEPT,Court Costs,14/06/12,IJ00010415,339,CENTRAL FINANCE UNIT, 
East Lindsey District Council,http://statistics.data.gov.uk/id/local-authority/32UC,DEPT,Court Costs,14/06/12,IJ00010416,2508,CENTRAL FINANCE UNIT, 
East Lindsey District Council,http://statistics.data.gov.uk/id/local-authority/32UC,DEPT,Court Costs,14/06/12,IJ00010416,213,CENTRAL FINANCE UNIT, 
East Lindsey District Council,http://statistics.data.gov.uk/id/local-authority/32UC,DEPT,Computer Hardware Purchase,14/06/12,IJ00010430,650,CHRISTOPHER DONKIN, 
East Lindsey District Council,http://statistics.data.gov.uk/id/local-authority/32UC,DEPT,Agency Staff,14/06/12,IJ00010554,5007.72,CLOSE INVOICE FINANCE LTD, 
East Lindsey District Council,http://statistics.data.gov.uk/id/local-authority/32UC,DEPT,Other agencies,14/06/12,IJ00010473,6919.17,COMPETITION LINE (UK) LTD, 
East Lindsey District Council,http://statistics.data.gov.uk/id/local-authority/32UC,Capital WIP,Grants and Contributions to Outside Bodies- No Service Recei,14/06/12,IJ00010413,14154.06,COTTS BUILDERS AND CONTRACTORS, 
East Lindsey District Council,http://statistics.data.gov.uk/id/local-authority/32UC,DEPT,Computer Software Licence Costs,14/06/12,IJ00010532,553,CROWN COMPUTING LIMITED, 
East Lindsey District Council,http://statistics.data.gov.uk/id/local-authority/32UC,Capital WIP,Works to Buildings (Sub Contractors),14/06/12,IJ00010753,534.4,D & D ENGINEERING (LINCS) LTD, 
East Lindsey District Council,http://statistics.data.gov.uk/id/local-authority/32UC,DEPT,Other Miscellaneous Expenses,14/06/12,IJ00010753,85,D & D ENGINEERING (LINCS) LTD, 
East Lindsey District Council,http://statistics.data.gov.uk/id/local-authority/32UC,Building Control Partnership,Telephones,14/06/12,IJ00010513,52.92,DAISY COMMUNICATIONS LTD, 
East Lindsey District Council,http://statistics.data.gov.uk/id/local-authority/32UC,Capital WIP,Telephones,14/06/12,IJ00010513,21.98,DAISY COMMUNICATIONS LTD, 
East Lindsey District Council,http://statistics.data.gov.uk/id/local-authority/32UC,Strategic Director (SD),Telephones,14/06/12,IJ00010513,10.99,DAISY COMMUNICATIONS LTD, 
East Lindsey District Council,http://statistics.data.gov.uk/id/local-authority/32UC,DEPT,Telephones,14/06/12,IJ00010513,39.97,DAISY COMMUNICATIONS LTD, 
East Lindsey District Council,http://statistics.data.gov.uk/id/local-authority/32UC,DEPT,Telephones,14/06/12,IJ00010513,222.68,DAISY COMMUNICATIONS LTD, 
East Lindsey District Council,http://statistics.data.gov.uk/id/local-authority/32UC,DEPT,Telephones,14/06/12,IJ00010513,70.3,DAISY COMMUNICATIONS LTD, 
East Lindsey District Council,http://statistics.data.gov.uk/id/local-authority/32UC,DEPT,Telephones,14/06/12,IJ00010513,360.18,DAISY COMMUNICATIONS LTD, 
East Lindsey District Council,http://statistics.data.gov.uk/id/local-authority/32UC,DEPT,Telephones,14/06/12,IJ00010513,10.99,DAISY COMMUNICATIONS LTD, 
East Lindsey District Council,http://statistics.data.gov.uk/id/local-authority/32UC,DEPT,Telephones,14/06/12,IJ00010513,11.05,DAISY COMMUNICATIONS LTD, 
East Lindsey District Council,http://statistics.data.gov.uk/id/local-authority/32UC,DEPT,Telephones,14/06/12,IJ00010513,158.61,DAISY COMMUNICATIONS LTD, 
East Lindsey District Council,http://statistics.data.gov.uk/id/local-authority/32UC,DEPT,Telephones,14/06/12,IJ00010513,47.7,DAISY COMMUNICATIONS LTD, 
East Lindsey District Council,http://statistics.data.gov.uk/id/local-authority/32UC,DEPT,Telephones,14/06/12,IJ00010513,66.08,DAISY COMMUNICATIONS LTD, 
East Lindsey District Council,http://statistics.data.gov.uk/id/local-authority/32UC,DEPT,Telephones,14/06/12,IJ00010513,477.02,DAISY COMMUNICATIONS LTD, 
East Lindsey District Council,http://statistics.data.gov.uk/id/local-authority/32UC,DEPT,Telephones,14/06/12,IJ00010513,21.98,DAISY COMMUNICATIONS LTD, 
East Lindsey District Council,http://statistics.data.gov.uk/id/local-authority/32UC,DEPT,Telephones,14/06/12,IJ00010513,58.06,DAISY COMMUNICATIONS LTD, 
East Lindsey District Council,http://statistics.data.gov.uk/id/local-authority/32UC,DEPT,Telephones,14/06/12,IJ00010513,21.98,DAISY COMMUNICATIONS LTD, 
East Lindsey District Council,http://statistics.data.gov.uk/id/local-authority/32UC,DEPT,Telephones,14/06/12,IJ00010513,104.4,DAISY COMMUNICATIONS LTD, 
East Lindsey District Council,http://statistics.data.gov.uk/id/local-authority/32UC,DEPT,Telephones,14/06/12,IJ00010513,447.57,DAISY COMMUNICATIONS LTD, 
East Lindsey District Council,http://statistics.data.gov.uk/id/local-authority/32UC,DEPT,Telephones,14/06/12,IJ00010513,33.92,DAISY COMMUNICATIONS LTD, 
East Lindsey District Council,http://statistics.data.gov.uk/id/local-authority/32UC,DEPT,Telephones,14/06/12,IJ00010513,10.99,DAISY COMMUNICATIONS LTD, 
East Lindsey District Council,http://statistics.data.gov.uk/id/local-authority/32UC,DEPT,Telephones,14/06/12,IJ00010513,10.99,DAISY COMMUNICATIONS LTD, 
East Lindsey District Council,http://statistics.data.gov.uk/id/local-authority/32UC,DEPT,Telephones,14/06/12,IJ00010513,22.06,DAISY COMMUNICATIONS LTD, 
East Lindsey District Council,http://statistics.data.gov.uk/id/local-authority/32UC,DEPT,Telephones,14/06/12,IJ00010513,21.98,DAISY COMMUNICATIONS LTD, 
East Lindsey District Council,http://statistics.data.gov.uk/id/local-authority/32UC,DEPT,Telephones,14/06/12,IJ00010513,11.03,DAISY COMMUNICATIONS LTD, 
East Lindsey District Council,http://statistics.data.gov.uk/id/local-authority/32UC,DEPT,Telephones,14/06/12,IJ00010513,10.99,DAISY COMMUNICATIONS LTD, 
East Lindsey District Council,http://statistics.data.gov.uk/id/local-authority/32UC,DEPT,Telephones,14/06/12,IJ00010513,21.98,DAISY COMMUNICATIONS LTD, 
East Lindsey District Council,http://statistics.data.gov.uk/id/local-authority/32UC,DEPT,Telephones,14/06/12,IJ00010513,33.62,DAISY COMMUNICATIONS LTD, 
East Lindsey District Council,http://statistics.data.gov.uk/id/local-authority/32UC,DEPT,Telephones,14/06/12,IJ00010513,10.99,DAISY COMMUNICATIONS LTD, 
East Lindsey District Council,http://statistics.data.gov.uk/id/local-authority/32UC,DEPT,Telephones,14/06/12,IJ00010513,11.21,DAISY COMMUNICATIONS LTD, 
East Lindsey District Council,http://statistics.data.gov.uk/id/local-authority/32UC,DEPT,Telephones,14/06/12,IJ00010513,22.53,DAISY COMMUNICATIONS LTD, 
East Lindsey District Council,http://statistics.data.gov.uk/id/local-authority/32UC,DEPT,Telephones,14/06/12,IJ00010513,10.99,DAISY COMMUNICATIONS LTD, 
East Lindsey District Council,http://statistics.data.gov.uk/id/local-authority/32UC,DEPT,Telephones,14/06/12,IJ00010513,21.98,DAISY COMMUNICATIONS LTD, 
East Lindsey District Council,http://statistics.data.gov.uk/id/local-authority/32UC,DEPT,Telephones,14/06/12,IJ00010513,74.28,DAISY COMMUNICATIONS LTD, 
East Lindsey District Council,http://statistics.data.gov.uk/id/local-authority/32UC,DEPT,Telephones,14/06/12,IJ00010513,324.86,DAISY COMMUNICATIONS LTD, 
East Lindsey District Council,http://statistics.data.gov.uk/id/local-authority/32UC,DEPT,Telephones,14/06/12,IJ00010513,11.01,DAISY COMMUNICATIONS LTD, 
East Lindsey District Council,http://statistics.data.gov.uk/id/local-authority/32UC,DEPT,Telephones,14/06/12,IJ00010513,62.81,DAISY COMMUNICATIONS LTD, 
East Lindsey District Council,http://statistics.data.gov.uk/id/local-authority/32UC,DEPT,Telephones,14/06/12,IJ00010513,10.99,DAISY COMMUNICATIONS LTD, 
East Lindsey District Council,http://statistics.data.gov.uk/id/local-authority/32UC,DEPT,Telephones,14/06/12,IJ00010513,10.99,DAISY COMMUNICATIONS LTD, 
East Lindsey District Council,http://statistics.data.gov.uk/id/local-authority/32UC,DEPT,Telephones,14/06/12,IJ00010513,11.21,DAISY COMMUNICATIONS LTD, 
East Lindsey District Council,http://statistics.data.gov.uk/id/local-authority/32UC,DEPT,Telephones,14/06/12,IJ00010513,16.18,DAISY COMMUNICATIONS LTD, 
East Lindsey District Council,http://statistics.data.gov.uk/id/local-authority/32UC,DEPT,Telephones,14/06/12,IJ00010513,10.99,DAISY COMMUNICATIONS LTD, 
East Lindsey District Council,http://statistics.data.gov.uk/id/local-authority/32UC,DEPT,Telephones,14/06/12,IJ00010513,36.41,DAISY COMMUNICATIONS LTD, 
East Lindsey District Council,http://statistics.data.gov.uk/id/local-authority/32UC,DEPT,Telephones,14/06/12,IJ00010513,11.37,DAISY COMMUNICATIONS LTD, 
East Lindsey District Council,http://statistics.data.gov.uk/id/local-authority/32UC,DEPT,Other Communication Costs,14/06/12,IJ00010513,10.99,DAISY COMMUNICATIONS LTD, 
East Lindsey District Council,http://statistics.data.gov.uk/id/local-authority/32UC,DEPT,Telephones,14/06/12,IJ00010513,82.58,DAISY COMMUNICATIONS LTD, 
East Lindsey District Council,http://statistics.data.gov.uk/id/local-authority/32UC,DEPT,Telephones,14/06/12,IJ00010513,32.97,DAISY COMMUNICATIONS LTD, 
East Lindsey District Council,http://statistics.data.gov.uk/id/local-authority/32UC,DEPT,Telephones,14/06/12,IJ00010513,-4.74,DAISY COMMUNICATIONS LTD, 
East Lindsey District Council,http://statistics.data.gov.uk/id/local-authority/32UC,DEPT,Other Miscellaneous Expenses,14/06/12,IJ00010688,1108.26,DEE BEE, 
East Lindsey District Council,http://statistics.data.gov.uk/id/local-authority/32UC,DEPT,Other Miscellaneous Expenses,14/06/12,IJ00010688,28.78,DEE BEE, 
East Lindsey District Council,http://statistics.data.gov.uk/id/local-authority/32UC,DEPT,Payment to NNDR Pool,14/06/12,IJ00010705,1489472,DEPARTMENT FOR COMMUNITIES AND LOCAL, 
East Lindsey District Council,http://statistics.data.gov.uk/id/local-authority/32UC,DEPT,Non Domestic Rates,14/06/12,IJ00010705,-585450,DEPARTMENT FOR COMMUNITIES AND LOCAL, 
East Lindsey District Council,http://statistics.data.gov.uk/id/local-authority/32UC,DEPT,Public Courses and Workshops,14/06/12,IJ00010631,860,DONNA MAHER, 
East Lindsey District Council,http://statistics.data.gov.uk/id/local-authority/32UC,DEPT,Electricity,14/06/12,IJ00010686,1995.94,E.ON ENERGY, 
East Lindsey District Council,http://statistics.data.gov.uk/id/local-authority/32UC,DEPT,Electricity,14/06/12,IJ00010686,6.06,E.ON ENERGY, 
East Lindsey District Council,http://statistics.data.gov.uk/id/local-authority/32UC,DEPT,Electricity,14/06/12,IJ00010686,21.16,E.ON ENERGY, 
East Lindsey District Council,http://statistics.data.gov.uk/id/local-authority/32UC,DEPT,Electricity,14/06/12,IJ00010686,7.94,E.ON ENERGY, 
East Lindsey District Council,http://statistics.data.gov.uk/id/local-authority/32UC,DEPT,Electricity,14/06/12,IJ00010686,16.02,E.ON ENERGY, 
East Lindsey District Council,http://statistics.data.gov.uk/id/local-authority/32UC,DEPT,Electricity,14/06/12,IJ00010686,26.32,E.ON ENERGY, 
East Lindsey District Council,http://statistics.data.gov.uk/id/local-authority/32UC,DEPT,Electricity,14/06/12,IJ00010686,19.38,E.ON ENERGY, 
East Lindsey District Council,http://statistics.data.gov.uk/id/local-authority/32UC,DEPT,Electricity,14/06/12,IJ00010686,13.14,E.ON ENERGY, 
East Lindsey District Council,http://statistics.data.gov.uk/id/local-authority/32UC,DEPT,Electricity,14/06/12,IJ00010686,4.62,E.ON ENERGY, 
East Lindsey District Council,http://statistics.data.gov.uk/id/local-authority/32UC,DEPT,Grants and Contributions to Outside Bodies- No Service Recei,14/06/12,IJ00010545,2700,EASTERN SEA FISHERIES JOINT COMMITTEE, 
East Lindsey District Council,http://statistics.data.gov.uk/id/local-authority/32UC,Development Control,Professional & Contractors Fees,14/06/12,IJ00010569,11137.02,ENPLAN UK LIMITED, 
East Lindsey District Council,http://statistics.data.gov.uk/id/local-authority/32UC,Development Control,Professional & Contractors Fees,14/06/12,IJ00010570,1479,ENPLAN UK LIMITED, 
East Lindsey District Council,http://statistics.data.gov.uk/id/local-authority/32UC,DEPT,Materials and Consumables,14/06/12,IJ00010626,14463,ESE LTD, 
East Lindsey District Council,http://statistics.data.gov.uk/id/local-authority/32UC,DEPT,Maintenance,14/06/12,IJ00010603,5850,ESE LTD, 
East Lindsey District Council,http://statistics.data.gov.uk/id/local-authority/32UC,DEPT,Materials and Consumables,14/06/12,IJ00010661,2195,ESE LTD, 
East Lindsey District Council,http://statistics.data.gov.uk/id/local-authority/32UC,DEPT,Other Miscellaneous Expenses,14/06/12,IJ00010464,3381.69,F W CUPIT PRINTERS LIMITED, 
East Lindsey District Council,http://statistics.data.gov.uk/id/local-authority/32UC,Building Control,Other Miscellaneous Expenses,14/06/12,IJ00010429,553.23,FOUNDATIONS & BUILDINGS LTD, 
East Lindsey District Council,http://statistics.data.gov.uk/id/local-authority/32UC,Capital WIP,Works to Buildings (main Contractor),14/06/12,IJ00010471,9958.34,FOXHALL CONSTRUCTION LTD, 
East Lindsey District Council,http://statistics.data.gov.uk/id/local-authority/32UC,Capital WIP,Works to Buildings (main Contractor),14/06/12,IJ00010574,3250,FOXHALL CONSTRUCTION LTD, 
East Lindsey District Council,http://statistics.data.gov.uk/id/local-authority/32UC,DEPT,Grants and Contributions to Outside Bodies- No Service Recei,14/06/12,IJ00010673,500,FRISKNEY SHOW, 
East Lindsey District Council,http://statistics.data.gov.uk/id/local-authority/32UC,DEPT,Other agencies,14/06/12,IJ00010543,1111.91,GLASS RECYCLING (UK) LTD, 
East Lindsey District Council,http://statistics.data.gov.uk/id/local-authority/32UC,DEPT,Maintenance,14/06/12,IJ00010624,742.03,GREAT COATES MOTORS LTD, 
East Lindsey District Council,http://statistics.data.gov.uk/id/local-authority/32UC,DEPT,Grants and Contributions to Outside Bodies- No Service Recei,14/06/12,IJ00010655,500,HOGSTHORPE PARISH COUNCIL, 
East Lindsey District Council,http://statistics.data.gov.uk/id/local-authority/32UC,DEPT,Grants and Contributions to Outside Bodies- No Service Recei,14/06/12,IJ00010675,500,HONEYSUCKLE CLUB, 
East Lindsey District Council,http://statistics.data.gov.uk/id/local-authority/32UC,Capital WIP,Grants and Contributions to Outside Bodies- No Service Recei,14/06/12,IJ00010652,500,HORNCASTLE TOWN COUNCIL, 
East Lindsey District Council,http://statistics.data.gov.uk/id/local-authority/32UC,DEPT,Insurance,14/06/12,IJ00010743,11029,HSB ENGINEERING INSURANCE SERVICES LTD, 
East Lindsey District Council,http://statistics.data.gov.uk/id/local-authority/32UC,Building Control Partnership,Computer Software Purchase,14/06/12,IJ00010555,950,IDOX SOFTWARE LTD, 
East Lindsey District Council,http://statistics.data.gov.uk/id/local-authority/32UC,DEPT,VAT Customs and Excise,14/06/12,IJ00010496,581.36,JACOBS, 
East Lindsey District Council,http://statistics.data.gov.uk/id/local-authority/32UC,DEPT,Other Miscellaneous Expenses,14/06/12,IJ00010616,1500,JOHN BYFORD PHOTOGRAPHY, 
East Lindsey District Council,http://statistics.data.gov.uk/id/local-authority/32UC,DEPT,Performers and Entertainers Fees,14/06/12,IJ00010690,1250,KCFX LIMITED, 
East Lindsey District Council,http://statistics.data.gov.uk/id/local-authority/32UC,DEPT,Other Miscellaneous Expenses,14/06/12,IJ00010515,598,KERNOCK PARK PLANTS, 
East Lindsey District Council,http://statistics.data.gov.uk/id/local-authority/32UC,Capital WIP,Works to Buildings (main Contractor),14/06/12,IJ00010573,50946.79,Langwith Builders Ltd, 
East Lindsey District Council,http://statistics.data.gov.uk/id/local-authority/32UC,Capital WIP,VAT Customs and Excise,14/06/12,IJ00010700,10189.36,Langwith Builders Ltd, 
East Lindsey District Council,http://statistics.data.gov.uk/id/local-authority/32UC,DEPT,Advertising - Events,14/06/12,IJ00010613,7280,LAVA, 
East Lindsey District Council,http://statistics.data.gov.uk/id/local-authority/32UC,Development Control,Agency Staff,14/06/12,IJ00010629,7063.8,LGS LIMITED, 
East Lindsey District Council,http://statistics.data.gov.uk/id/local-authority/32UC,DEPT,Grants and Contributions to Outside Bodies- No Service Recei,14/06/12,IJ00010485,3150,LINCOLNSHIRE COUNTY COUNCIL, 
East Lindsey District Council,http://statistics.data.gov.uk/id/local-authority/32UC,DEPT,Professional & Contractors Fees,14/06/12,IJ00010653,3314,LINCOLNSHIRE COUNTY COUNCIL, 
East Lindsey District Council,http://statistics.data.gov.uk/id/local-authority/32UC,DEPT,Precept- Lincolnshire County Council,14/06/12,IJ00010747,5110516,LINCOLNSHIRE COUNTY COUNCIL, 
East Lindsey District Council,http://statistics.data.gov.uk/id/local-authority/32UC,DEPT,Agency Staff,14/06/12,IJ00010451,680,LINCS MOTORHOMES LTD, 
East Lindsey District Council,http://statistics.data.gov.uk/id/local-authority/32UC,DEPT,Agency Staff,14/06/12,IJ00010452,1797,LINCS MOTORHOMES LTD, 
East Lindsey District Council,http://statistics.data.gov.uk/id/local-authority/32UC,DEPT,Precept - Lincolnshire Police,14/06/12,IJ00010744,893833.25,LOCAL POLICE AUTHORITY FUND ACCOUNT, 
East Lindsey District Council,http://statistics.data.gov.uk/id/local-authority/32UC,DEPT,Agency Staff,14/06/12,IJ00010689,171575,MAGNETIC EVENTS LTD, 
East Lindsey District Council,http://statistics.data.gov.uk/id/local-authority/32UC,DEPT,Maintenance,14/06/12,IJ00010443,646.81,MAY GURNEY FLEET & PASSENGER SERVICES LTD, 
East Lindsey District Council,http://statistics.data.gov.uk/id/local-authority/32UC,DEPT,Maintenance,14/06/12,IJ00010447,647.85,MAY GURNEY FLEET & PASSENGER SERVICES LTD, 
East Lindsey District Council,http://statistics.data.gov.uk/id/local-authority/32UC,DEPT,Postages,14/06/12,IJ00010620,2524.19,MORTONS PRINT LIMITED, 
East Lindsey District Council,http://statistics.data.gov.uk/id/local-authority/32UC,DEPT,Telephones,14/06/12,IJ00010519,888,MULTIDATA (EUROPE), 
East Lindsey District Council,http://statistics.data.gov.uk/id/local-authority/32UC,DEPT,Internet Broadband Payments,14/06/12,IJ00010522,647.16,MULTIDATA (EUROPE), 
East Lindsey District Council,http://statistics.data.gov.uk/id/local-authority/32UC,DEPT,Internet Broadband Payments,14/06/12,IJ00010522,647.16,MULTIDATA (EUROPE), 
East Lindsey District Council,http://statistics.data.gov.uk/id/local-authority/32UC,DEPT,Telephones,14/06/12,IJ00010529,585,MULTIDATA (EUROPE), 
East Lindsey District Council,http://statistics.data.gov.uk/id/local-authority/32UC,DEPT,Insurance,14/06/12,IJ00010052,11029,MUNICH RE, 
East Lindsey District Council,http://statistics.data.gov.uk/id/local-authority/32UC,DEPT,Payments to Bodies in Respect of Income Collected,14/06/12,IJ00010561,1055.67,NATIONAL EXPRESS CREDIT CONTROL DEPT, 
East Lindsey District Council,http://statistics.data.gov.uk/id/local-authority/32UC,DEPT,Payments to Bodies in Respect of Income Collected,14/06/12,IJ00010561,2860.75,NATIONAL EXPRESS CREDIT CONTROL DEPT, 
East Lindsey District Council,http://statistics.data.gov.uk/id/local-authority/32UC,DEPT,Payments to Bodies in Respect of Income Collected,14/06/12,IJ00010561,827.14,NATIONAL EXPRESS CREDIT CONTROL DEPT, 
East Lindsey District Council,http://statistics.data.gov.uk/id/local-authority/32UC,DEPT,Payments to Bodies in Respect of Income Collected,14/06/12,IJ00010561,294.45,NATIONAL EXPRESS CREDIT CONTROL DEPT, 
East Lindsey District Council,http://statistics.data.gov.uk/id/local-authority/32UC,Capital WIP,Grants and Contributions to Outside Bodies- No Service Recei,14/06/12,IJ00010412,3824.8,OBAM STAIRLIFTS, 
East Lindsey District Council,http://statistics.data.gov.uk/id/local-authority/32UC,DEPT,Other Revenue Grants Reimbursements & Contributions (Govt),14/06/12,IJ00010412,-341.5,OBAM STAIRLIFTS, 
East Lindsey District Council,http://statistics.data.gov.uk/id/local-authority/32UC,DEPT,Materials and Consumables,14/06/12,IJ00010623,1625,PCF, 
East Lindsey District Council,http://statistics.data.gov.uk/id/local-authority/32UC,DEPT,Clothing Uniforms And Laundry,14/06/12,IJ00010564,1270.9,PHS LAUNDRYSERV, 
East Lindsey District Council,http://statistics.data.gov.uk/id/local-authority/32UC,DEPT,Buildings Maintenance - Responsive,14/06/12,IJ00010725,1080.85,POOLSIDE LEISURE, 
East Lindsey District Council,http://statistics.data.gov.uk/id/local-authority/32UC,DEPT,Buildings Maintenance - Responsive,14/06/12,IJ00010726,926,POOLSIDE LEISURE, 
East Lindsey District Council,http://statistics.data.gov.uk/id/local-authority/32UC,DEPT,Furniture and Equipment,14/06/12,IJ00010642,775.25,POSTURITE LTD, 
East Lindsey District Council,http://statistics.data.gov.uk/id/local-authority/32UC,DEPT,Grants and Contributions to Outside Bodies- No Service Recei,14/06/12,IJ00010469,667,PROTOUCH SECURITY LTD, 
East Lindsey District Council,http://statistics.data.gov.uk/id/local-authority/32UC,Capital WIP,Works to Buildings (Sub Contractors),14/06/12,IJ00010703,709.94,ROBERT FROST, 
East Lindsey District Council,http://statistics.data.gov.uk/id/local-authority/32UC,DEPT,Buildings Maintenance - Responsive,14/06/12,IJ00010703,14,ROBERT FROST, 
East Lindsey District Council,http://statistics.data.gov.uk/id/local-authority/32UC,DEPT,Buildings Maintenance - Responsive,14/06/12,IJ00010703,11.96,ROBERT FROST, 
East Lindsey District Council,http://statistics.data.gov.uk/id/local-authority/32UC,DEPT,Buildings Maintenance - Responsive,14/06/12,IJ00010703,28,ROBERT FROST, 
East Lindsey District Council,http://statistics.data.gov.uk/id/local-authority/32UC,DEPT,Postages,14/06/12,IJ00010465,723.68,ROYAL MAIL, 
East Lindsey District Council,http://statistics.data.gov.uk/id/local-authority/32UC,DEPT,Postages,14/06/12,IJ00010695,101.36,ROYAL MAIL, 
East Lindsey District Council,http://statistics.data.gov.uk/id/local-authority/32UC,DEPT,Postages,14/06/12,IJ00010695,94.98,ROYAL MAIL, 
East Lindsey District Council,http://statistics.data.gov.uk/id/local-authority/32UC,DEPT,Postages,14/06/12,IJ00010695,806.78,ROYAL MAIL, 
East Lindsey District Council,http://statistics.data.gov.uk/id/local-authority/32UC,DEPT,Postages,14/06/12,IJ00010695,297.93,ROYAL MAIL, 
East Lindsey District Council,http://statistics.data.gov.uk/id/local-authority/32UC,DEPT,Postages,14/06/12,IJ00010695,31.29,ROYAL MAIL, 
East Lindsey District Council,http://statistics.data.gov.uk/id/local-authority/32UC,DEPT,Other Miscellaneous Expenses,14/06/12,IJ00010695,1040.91,ROYAL MAIL, 
East Lindsey District Council,http://statistics.data.gov.uk/id/local-authority/32UC,DEPT,Other Miscellaneous Expenses,14/06/12,IJ00010695,364.95,ROYAL MAIL, 
East Lindsey District Council,http://statistics.data.gov.uk/id/local-authority/32UC,DEPT,Other Miscellaneous Expenses,14/06/12,IJ00010695,179.26,ROYAL MAIL, 
East Lindsey District Council,http://statistics.data.gov.uk/id/local-authority/32UC,DEPT,Postages,14/06/12,IJ00010701,42.75,ROYAL MAIL, 
East Lindsey District Council,http://statistics.data.gov.uk/id/local-authority/32UC,DEPT,Postages,14/06/12,IJ00010701,9.47,ROYAL MAIL, 
East Lindsey District Council,http://statistics.data.gov.uk/id/local-authority/32UC,DEPT,Postages,14/06/12,IJ00010701,714.82,ROYAL MAIL, 
East Lindsey District Council,http://statistics.data.gov.uk/id/local-authority/32UC,DEPT,Postages,14/06/12,IJ00010701,324.87,ROYAL MAIL, 
East Lindsey District Council,http://statistics.data.gov.uk/id/local-authority/32UC,DEPT,Postages,14/06/12,IJ00010701,16.17,ROYAL MAIL, 
East Lindsey District Council,http://statistics.data.gov.uk/id/local-authority/32UC,DEPT,Other Miscellaneous Expenses,14/06/12,IJ00010701,1043.88,ROYAL MAIL, 
East Lindsey District Council,http://statistics.data.gov.uk/id/local-authority/32UC,DEPT,Other Miscellaneous Expenses,14/06/12,IJ00010701,532.18,ROYAL MAIL, 
East Lindsey District Council,http://statistics.data.gov.uk/id/local-authority/32UC,DEPT,Other Miscellaneous Expenses,14/06/12,IJ00010701,59.24,ROYAL MAIL, 
East Lindsey District Council,http://statistics.data.gov.uk/id/local-authority/32UC,DEPT,Postages,14/06/12,IJ00010702,19.24,ROYAL MAIL, 
East Lindsey District Council,http://statistics.data.gov.uk/id/local-authority/32UC,DEPT,Postages,14/06/12,IJ00010702,3.66,ROYAL MAIL, 
East Lindsey District Council,http://statistics.data.gov.uk/id/local-authority/32UC,DEPT,Postages,14/06/12,IJ00010702,534.82,ROYAL MAIL, 
East Lindsey District Council,http://statistics.data.gov.uk/id/local-authority/32UC,DEPT,Postages,14/06/12,IJ00010702,221.07,ROYAL MAIL, 
East Lindsey District Council,http://statistics.data.gov.uk/id/local-authority/32UC,DEPT,Postages,14/06/12,IJ00010702,51.6,ROYAL MAIL, 
East Lindsey District Council,http://statistics.data.gov.uk/id/local-authority/32UC,DEPT,Other Miscellaneous Expenses,14/06/12,IJ00010702,736.17,ROYAL MAIL, 
East Lindsey District Council,http://statistics.data.gov.uk/id/local-authority/32UC,DEPT,Other Miscellaneous Expenses,14/06/12,IJ00010702,224.77,ROYAL MAIL, 
East Lindsey District Council,http://statistics.data.gov.uk/id/local-authority/32UC,Capital WIP,Grants and Contributions to Outside Bodies- No Service Recei,14/06/12,IJ00010650,2110,SCAMBLESBY PARISH COUNCIL, 
East Lindsey District Council,http://statistics.data.gov.uk/id/local-authority/32UC,DEPT,Buildings Maintenance - Responsive,14/06/12,IJ00010720,595,SDG Access Limited, 
East Lindsey District Council,http://statistics.data.gov.uk/id/local-authority/32UC,DEPT,Furniture and Equipment,14/06/12,IJ00010761,9579.66,SEYMOUR & CASTLE LTD, 
East Lindsey District Council,http://statistics.data.gov.uk/id/local-authority/32UC,DEPT,Grants and Contributions to Outside Bodies- No Service Recei,14/06/12,IJ00010454,771.75,SIGNS EXPERTS, 
East Lindsey District Council,http://statistics.data.gov.uk/id/local-authority/32UC,DEPT,Other Miscellaneous Expenses,14/06/12,IJ00010457,540,SKEGNESS SILVER BAND, 
East Lindsey District Council,http://statistics.data.gov.uk/id/local-authority/32UC,DEPT,Grants and Contributions to Outside Bodies- No Service Recei,14/06/12,IJ00010466,500,SKIDBROOKE CUM SALTFLEET HAVEN P.C., 
East Lindsey District Council,http://statistics.data.gov.uk/id/local-authority/32UC,DEPT,Furniture and Equipment,14/06/12,IJ00010548,13150,SKIP UNITS LTD, 
East Lindsey District Council,http://statistics.data.gov.uk/id/local-authority/32UC,DEPT,Payroll Sacrifice Nursery Voucher,14/06/12,IJ00010698,2370,SODEXHO, 
East Lindsey District Council,http://statistics.data.gov.uk/id/local-authority/32UC,DEPT,Electricity,14/06/12,IJ00010699,1038.05,SOUTHERN ELECTRIC PLC, 
East Lindsey District Council,http://statistics.data.gov.uk/id/local-authority/32UC,DEPT,Agency Staff,14/06/12,IJ00010607,2340.65,THE WORKSHOP (WISBECH) LIMITED, 
East Lindsey District Council,http://statistics.data.gov.uk/id/local-authority/32UC,DEPT,Agency Staff,14/06/12,IJ00010608,1964.63,THE WORKSHOP (WISBECH) LIMITED, 
East Lindsey District Council,http://statistics.data.gov.uk/id/local-authority/32UC,DEPT,Commercial Vehicle Lease,14/06/12,IJ00010547,350.93,TJS, 
East Lindsey District Council,http://statistics.data.gov.uk/id/local-authority/32UC,DEPT,Maintenance,14/06/12,IJ00010547,476.81,TJS, 
East Lindsey District Council,http://statistics.data.gov.uk/id/local-authority/32UC,DEPT,Commercial Vehicle Lease,14/06/12,IJ00010664,614.18,TJS, 
East Lindsey District Council,http://statistics.data.gov.uk/id/local-authority/32UC,DEPT,Buildings Maintenance - Responsive,14/06/12,IJ00010730,600,TOPDRIVE LTD, 
East Lindsey District Council,http://statistics.data.gov.uk/id/local-authority/32UC,DEPT,Rent and Lease Payments,14/06/12,IJ00010540,937.5,TOTEMIC LTD, 
East Lindsey District Council,http://statistics.data.gov.uk/id/local-authority/32UC,DEPT,Insurance,14/06/12,IJ00010419,15004.32,TRAVELERS INSURANCE COMPANY LIMITED, 
East Lindsey District Council,http://statistics.data.gov.uk/id/local-authority/32UC,DEPT,Insurance,14/06/12,IJ00010420,2602.81,TRAVELERS INSURANCE COMPANY LIMITED, 
East Lindsey District Council,http://statistics.data.gov.uk/id/local-authority/32UC,DEPT,Insurance,14/06/12,IJ00010646,1762.5,TRAVELERS INSURANCE COMPANY LIMITED, 
East Lindsey District Council,http://statistics.data.gov.uk/id/local-authority/32UC,DEPT,Insurance,14/06/12,IJ00010648,1870.9,TRAVELERS INSURANCE COMPANY LIMITED, 
East Lindsey District Council,http://statistics.data.gov.uk/id/local-authority/32UC,DEPT,Commercial Vehicle Lease,14/06/12,IJ00010517,3025.32,VISILINK LIMITED, 
East Lindsey District Council,http://statistics.data.gov.uk/id/local-authority/32UC,DEPT,Materials and Consumables,14/06/12,IJ00010488,693,VITAX LTD, 
East Lindsey District Council,http://statistics.data.gov.uk/id/local-authority/32UC,DEPT,Buildings Maintenance - Responsive,14/06/12,IJ00010711,4.87,WALLACE ELECTRICAL DIST (SKEGNESS LTD), 
East Lindsey District Council,http://statistics.data.gov.uk/id/local-authority/32UC,DEPT,Buildings Maintenance - Responsive,14/06/12,IJ00010711,9.75,WALLACE ELECTRICAL DIST (SKEGNESS LTD), 
East Lindsey District Council,http://statistics.data.gov.uk/id/local-authority/32UC,DEPT,Buildings Maintenance - Responsive,14/06/12,IJ00010711,4.87,WALLACE ELECTRICAL DIST (SKEGNESS LTD), 
East Lindsey District Council,http://statistics.data.gov.uk/id/local-authority/32UC,DEPT,Buildings Maintenance - Programmed,14/06/12,IJ00010711,483.6,WALLACE ELECTRICAL DIST (SKEGNESS LTD), 
East Lindsey District Council,http://statistics.data.gov.uk/id/local-authority/32UC,DEPT,Buildings Maintenance - Responsive,14/06/12,IJ00010711,4.88,WALLACE ELECTRICAL DIST (SKEGNESS LTD), 
East Lindsey District Council,http://statistics.data.gov.uk/id/local-authority/32UC,DEPT,Buildings Maintenance - Responsive,14/06/12,IJ00010711,36.56,WALLACE ELECTRICAL DIST (SKEGNESS LTD), 
East Lindsey District Council,http://statistics.data.gov.uk/id/local-authority/32UC,DEPT,Fuel & Oil,14/06/12,IJ00010442,13585.63,WATSON PETROLEUM LTD, 
East Lindsey District Council,http://statistics.data.gov.uk/id/local-authority/32UC,DEPT,Grants and Contributions to Outside Bodies- No Service Recei,14/06/12,IJ00010625,3047,WEST LINDSEY DISTRICT COUNCIL, 
East Lindsey District Council,http://statistics.data.gov.uk/id/local-authority/32UC,DEPT,Other Miscellaneous Expenses,14/06/12,IJ00010632,2800,WILD PLANET LTD, 
East Lindsey District Council,http://statistics.data.gov.uk/id/local-authority/32UC,DEPT,Other Miscellaneous Expenses,14/06/12,IJ00010651,1200,WILD PLANET LTD, 
East Lindsey District Council,http://statistics.data.gov.uk/id/local-authority/32UC,DEPT,Internal Drainage Board Levies,14/06/12,IJ00010740,166275.71,WITHAM FOURTH DISTRICT INTERNAL, 
East Lindsey District Council,http://statistics.data.gov.uk/id/local-authority/32UC,DEPT,Grants and Contributions to Outside Bodies- No Service Recei,14/06/12,IJ00010414,500,WOODHALL SPA CHAMBER, 
East Lindsey District Council,http://statistics.data.gov.uk/id/local-authority/32UC,DEPT,Payments to Bodies in Respect of Income Collected,14/06/12,IJ00010560,591,WOODHALL SPA COTTAGE MUSEUM, 
East Lindsey District Council,http://statistics.data.gov.uk/id/local-authority/32UC,Capital WIP,Grants and Contributions to Outside Bodies- No Service Recei,14/06/12,IJ00010455,40000.01,WOODHALL SPA PARISH COUNCIL, 
East Lindsey District Council,http://statistics.data.gov.uk/id/local-authority/32UC,Building Control Partnership,Telephones,18/06/12,IJ00010803,-103.05,BT PLC, 
East Lindsey District Council,http://statistics.data.gov.uk/id/local-authority/32UC,DEPT,Telephones,18/06/12,IJ00010803,125.55,BT PLC, 
East Lindsey District Council,http://statistics.data.gov.uk/id/local-authority/32UC,DEPT,Telephones,18/06/12,IJ00010803,1013.8,BT PLC, 
East Lindsey District Council,http://statistics.data.gov.uk/id/local-authority/32UC,DEPT,Telephones,18/06/12,IJ00010803,12094.46,BT PLC, 
East Lindsey District Council,http://statistics.data.gov.uk/id/local-authority/32UC,DEPT,Telephones,18/06/12,IJ00010803,2482.08,BT PLC, 
East Lindsey District Council,http://statistics.data.gov.uk/id/local-authority/32UC,DEPT,Telephones,18/06/12,IJ00010803,120.9,BT PLC, 
East Lindsey District Council,http://statistics.data.gov.uk/id/local-authority/32UC,DEPT,Telephones,18/06/12,IJ00010803,954.78,BT PLC, 
East Lindsey District Council,http://statistics.data.gov.uk/id/local-authority/32UC,DEPT,Telephones,18/06/12,IJ00010803,159.74,BT PLC, 
East Lindsey District Council,http://statistics.data.gov.uk/id/local-authority/32UC,DEPT,Telephones,18/06/12,IJ00010803,113.07,BT PLC, 
East Lindsey District Council,http://statistics.data.gov.uk/id/local-authority/32UC,DEPT,Telephones,18/06/12,IJ00010803,26.42,BT PLC, 
East Lindsey District Council,http://statistics.data.gov.uk/id/local-authority/32UC,DEPT,Telephones,18/06/12,IJ00010803,35.95,BT PLC, 
East Lindsey District Council,http://statistics.data.gov.uk/id/local-authority/32UC,DEPT,Telephones,18/06/12,IJ00010803,267.08,BT PLC, 
East Lindsey District Council,http://statistics.data.gov.uk/id/local-authority/32UC,DEPT,Telephones,18/06/12,IJ00010803,24.91,BT PLC, 
East Lindsey District Council,http://statistics.data.gov.uk/id/local-authority/32UC,DEPT,Furniture and Equipment,18/06/12,IJ00010789,1123.33,EAST COAST CARPETS LINCS LTD, 
East Lindsey District Council,http://statistics.data.gov.uk/id/local-authority/32UC,DEPT,Postages,18/06/12,IJ00010773,9000,NEOPOST LTD, 
East Lindsey District Council,http://statistics.data.gov.uk/id/local-authority/32UC,DEPT,Clothing Uniforms And Laundry,18/06/12,IJ00010783,1644,VANESSA HALLAM, 
East Lindsey District Council,http://statistics.data.gov.uk/id/local-authority/32UC,DEPT,Buildings Maintenance - Programmed,21/06/12,IJ00010836,650.92,ABACUS LIGHTING LIMITED, 
East Lindsey District Council,http://statistics.data.gov.uk/id/local-authority/32UC,DEPT,Buildings Maintenance - Programmed,21/06/12,IJ00010878,1320,AIRCO INSTALLATIONS LTD, 
East Lindsey District Council,http://statistics.data.gov.uk/id/local-authority/32UC,DEPT,Buildings Maintenance - Programmed,21/06/12,IJ00010881,960,AIRCO INSTALLATIONS LTD, 
East Lindsey District Council,http://statistics.data.gov.uk/id/local-authority/32UC,DEPT,Buildings Maintenance - Programmed,21/06/12,IJ00010882,1440,AIRCO INSTALLATIONS LTD, 
East Lindsey District Council,http://statistics.data.gov.uk/id/local-authority/32UC,DEPT,Other Miscellaneous Expenses,21/06/12,IJ00011036,75.77,ALLPAY NET LTD, 
East Lindsey District Council,http://statistics.data.gov.uk/id/local-authority/32UC,DEPT,Other Miscellaneous Expenses,21/06/12,IJ00011036,3697.75,ALLPAY NET LTD, 
East Lindsey District Council,http://statistics.data.gov.uk/id/local-authority/32UC,DEPT,Other Miscellaneous Expenses,21/06/12,IJ00011036,8,ALLPAY NET LTD, 
East Lindsey District Council,http://statistics.data.gov.uk/id/local-authority/32UC,DEPT,Other Miscellaneous Expenses,21/06/12,IJ00010812,715,AMT MARKETING, 
East Lindsey District Council,http://statistics.data.gov.uk/id/local-authority/32UC,Capital WIP,Grants and Contributions to Outside Bodies- No Service Recei,21/06/12,IJ00010960,3905.55,ANDREW WRISDALE BUILDING CONTRACTOR, 
East Lindsey District Council,http://statistics.data.gov.uk/id/local-authority/32UC,DEPT,Other Income,21/06/12,IJ00010960,-418.45,ANDREW WRISDALE BUILDING CONTRACTOR, 
East Lindsey District Council,http://statistics.data.gov.uk/id/local-authority/32UC,DEPT,Water and Sewerage Charges,21/06/12,IJ00010885,1996.91,ANGLIAN WATER, 
East Lindsey District Council,http://statistics.data.gov.uk/id/local-authority/32UC,DEPT,Computer Software Purchase,21/06/12,IJ00010984,3203.9,APPSENSE, 
East Lindsey District Council,http://statistics.data.gov.uk/id/local-authority/32UC,Development Control,Stationery,21/06/12,IJ00011014,107.48,AQUILA BUSINESS PRODUCT, 
East Lindsey District Council,http://statistics.data.gov.uk/id/local-authority/32UC,Sports Development,Stationery,21/06/12,IJ00011014,95.95,AQUILA BUSINESS PRODUCT, 
East Lindsey District Council,http://statistics.data.gov.uk/id/local-authority/32UC,DEPT,Stationery,21/06/12,IJ00011014,16.33,AQUILA BUSINESS PRODUCT, 
East Lindsey District Council,http://statistics.data.gov.uk/id/local-authority/32UC,DEPT,Stationery,21/06/12,IJ00011014,33.98,AQUILA BUSINESS PRODUCT, 
East Lindsey District Council,http://statistics.data.gov.uk/id/local-authority/32UC,DEPT,Stationery,21/06/12,IJ00011014,100.24,AQUILA BUSINESS PRODUCT, 
East Lindsey District Council,http://statistics.data.gov.uk/id/local-authority/32UC,DEPT,Stationery,21/06/12,IJ00011014,3.18,AQUILA BUSINESS PRODUCT, 
East Lindsey District Council,http://statistics.data.gov.uk/id/local-authority/32UC,DEPT,Stationery,21/06/12,IJ00011014,110.33,AQUILA BUSINESS PRODUCT, 
East Lindsey District Council,http://statistics.data.gov.uk/id/local-authority/32UC,DEPT,Stationery,21/06/12,IJ00011014,49.34,AQUILA BUSINESS PRODUCT, 
East Lindsey District Council,http://statistics.data.gov.uk/id/local-authority/32UC,DEPT,Banking Charges,21/06/12,IJ00011049,748.53,BARCLAYS MERCHANT SERVICES, 
East Lindsey District Council,http://statistics.data.gov.uk/id/local-authority/32UC,DEPT,Agency Staff,21/06/12,IJ00010807,4912.36,CLOSE INVOICE FINANCE LTD, 
East Lindsey District Council,http://statistics.data.gov.uk/id/local-authority/32UC,DEPT,Agency Staff,21/06/12,IJ00010929,6657.78,CLOSE INVOICE FINANCE LTD, 
East Lindsey District Council,http://statistics.data.gov.uk/id/local-authority/32UC,DEPT,Other Miscellaneous Expenses,21/06/12,IJ00011038,3280,COMPASS POINT BUSINESS SERVICES, 
East Lindsey District Council,http://statistics.data.gov.uk/id/local-authority/32UC,DEPT,Furniture and Equipment,21/06/12,IJ00010991,370.88,CORPORATE DIRECT (EUROPE) LTD, 
East Lindsey District Council,http://statistics.data.gov.uk/id/local-authority/32UC,DEPT,Computer Hardware Purchase,21/06/12,IJ00010991,200.88,CORPORATE DIRECT (EUROPE) LTD, 
East Lindsey District Council,http://statistics.data.gov.uk/id/local-authority/32UC,DEPT,Furniture and Equipment,21/06/12,IJ00010991,370.87,CORPORATE DIRECT (EUROPE) LTD, 
East Lindsey District Council,http://statistics.data.gov.uk/id/local-authority/32UC,Capital WIP,Grants and Contributions to Outside Bodies- No Service Recei,21/06/12,IJ00011016,11204,COUNTRYWIDE PROPERTIES LINCS LTD, 
East Lindsey District Council,http://statistics.data.gov.uk/id/local-authority/32UC,DEPT,Professional & Contractors Fees,21/06/12,IJ00010956,697.31,CRANBERRY COMPOST PRODUCERS LTD, 
East Lindsey District Council,http://statistics.data.gov.uk/id/local-authority/32UC,DEPT,Payment to NNDR Pool,21/06/12,IJ00010983,1489473,DEPARTMENT FOR COMMUNITIES AND LOCAL, 
East Lindsey District Council,http://statistics.data.gov.uk/id/local-authority/32UC,DEPT,Non Domestic Rates,21/06/12,IJ00010983,-585451,DEPARTMENT FOR COMMUNITIES AND LOCAL, 
East Lindsey District Council,http://statistics.data.gov.uk/id/local-authority/32UC,DEPT,Performers and Entertainers Fees,21/06/12,IJ00010918,3204.38,DEREK BLOCK CONCERT PROMOTIONS LTD, 
East Lindsey District Council,http://statistics.data.gov.uk/id/local-authority/32UC,DEPT,Performers and Entertainers Fees,21/06/12,IJ00010918,-150,DEREK BLOCK CONCERT PROMOTIONS LTD, 
East Lindsey District Council,http://statistics.data.gov.uk/id/local-authority/32UC,DEPT,Postages,21/06/12,IJ00010918,306.68,DEREK BLOCK CONCERT PROMOTIONS LTD, 
East Lindsey District Council,http://statistics.data.gov.uk/id/local-authority/32UC,DEPT,Buildings Maintenance - Programmed,21/06/12,IJ00010837,2494.27,DEVLIN DECORATORS LTD, 
East Lindsey District Council,http://statistics.data.gov.uk/id/local-authority/32UC,DEPT,Materials and Consumables,21/06/12,IJ00010908,2100,ESE LTD, 
East Lindsey District Council,http://statistics.data.gov.uk/id/local-authority/32UC,DEPT,Materials and Consumables,21/06/12,IJ00010909,2100,ESE LTD, 
East Lindsey District Council,http://statistics.data.gov.uk/id/local-authority/32UC,DEPT,Materials and Consumables,21/06/12,IJ00010938,1028,ESE LTD, 
East Lindsey District Council,http://statistics.data.gov.uk/id/local-authority/32UC,Development Control,Materials and Consumables,21/06/12,IJ00011058,15.8,ESPO, 
East Lindsey District Council,http://statistics.data.gov.uk/id/local-authority/32UC,Service Development Manager,Materials and Consumables,21/06/12,IJ00010768,1510,ESPO, 
East Lindsey District Council,http://statistics.data.gov.uk/id/local-authority/32UC,DEPT,Cleaning Contract,21/06/12,IJ00010767,247.92,ESPO, 
East Lindsey District Council,http://statistics.data.gov.uk/id/local-authority/32UC,DEPT,Cleaning Contract,21/06/12,IJ00010767,1.6,ESPO, 
East Lindsey District Council,http://statistics.data.gov.uk/id/local-authority/32UC,DEPT,Stationery,21/06/12,IJ00010767,2.25,ESPO, 
East Lindsey District Council,http://statistics.data.gov.uk/id/local-authority/32UC,DEPT,Stationery,21/06/12,IJ00010767,5.75,ESPO, 
East Lindsey District Council,http://statistics.data.gov.uk/id/local-authority/32UC,DEPT,Stationery,21/06/12,IJ00010767,47.72,ESPO, 
East Lindsey District Council,http://statistics.data.gov.uk/id/local-authority/32UC,DEPT,Stationery,21/06/12,IJ00010767,5.2,ESPO, 
East Lindsey District Council,http://statistics.data.gov.uk/id/local-authority/32UC,DEPT,Other Miscellaneous Expenses,21/06/12,IJ00010767,9.2,ESPO, 
East Lindsey District Council,http://statistics.data.gov.uk/id/local-authority/32UC,DEPT,Materials and Consumables,21/06/12,IJ00010767,314.61,ESPO, 
East Lindsey District Council,http://statistics.data.gov.uk/id/local-authority/32UC,DEPT,Cleaning Contract,21/06/12,IJ00010767,57.75,ESPO, 
East Lindsey District Council,http://statistics.data.gov.uk/id/local-authority/32UC,DEPT,Stationery,21/06/12,IJ00010767,9.25,ESPO, 
East Lindsey District Council,http://statistics.data.gov.uk/id/local-authority/32UC,DEPT,Stationery,21/06/12,IJ00010767,3.95,ESPO, 
East Lindsey District Council,http://statistics.data.gov.uk/id/local-authority/32UC,DEPT,Stationery,21/06/12,IJ00010767,7.6,ESPO, 
East Lindsey District Council,http://statistics.data.gov.uk/id/local-authority/32UC,DEPT,Stationery,21/06/12,IJ00010767,3,ESPO, 
East Lindsey District Council,http://statistics.data.gov.uk/id/local-authority/32UC,DEPT,Materials and Consumables,21/06/12,IJ00010767,167.75,ESPO, 
East Lindsey District Council,http://statistics.data.gov.uk/id/local-authority/32UC,DEPT,Cleaning Contract,21/06/12,IJ00010768,31.92,ESPO, 
East Lindsey District Council,http://statistics.data.gov.uk/id/local-authority/32UC,DEPT,Materials and Consumables,21/06/12,IJ00010768,38.33,ESPO, 
East Lindsey District Council,http://statistics.data.gov.uk/id/local-authority/32UC,DEPT,Stationery,21/06/12,IJ00010768,16.75,ESPO, 
East Lindsey District Council,http://statistics.data.gov.uk/id/local-authority/32UC,DEPT,Stationery,21/06/12,IJ00010768,7.7,ESPO, 
East Lindsey District Council,http://statistics.data.gov.uk/id/local-authority/32UC,DEPT,Materials and Consumables,21/06/12,IJ00010768,5.7,ESPO, 
East Lindsey District Council,http://statistics.data.gov.uk/id/local-authority/32UC,DEPT,Cleaning Contract,21/06/12,IJ00010768,180.68,ESPO, 
East Lindsey District Council,http://statistics.data.gov.uk/id/local-authority/32UC,DEPT,Stationery,21/06/12,IJ00010768,9.85,ESPO, 
East Lindsey District Council,http://statistics.data.gov.uk/id/local-authority/32UC,DEPT,Stationery,21/06/12,IJ00010768,52.17,ESPO, 
East Lindsey District Council,http://statistics.data.gov.uk/id/local-authority/32UC,DEPT,Cleaning Contract,21/06/12,IJ00010768,38.46,ESPO, 
East Lindsey District Council,http://statistics.data.gov.uk/id/local-authority/32UC,DEPT,Stationery,21/06/12,IJ00010768,18.35,ESPO, 
East Lindsey District Council,http://statistics.data.gov.uk/id/local-authority/32UC,DEPT,Materials and Consumables,21/06/12,IJ00011058,100.14,ESPO, 
East Lindsey District Council,http://statistics.data.gov.uk/id/local-authority/32UC,DEPT,Materials and Consumables,21/06/12,IJ00011058,165.1,ESPO, 
East Lindsey District Council,http://statistics.data.gov.uk/id/local-authority/32UC,DEPT,Furniture and Equipment,21/06/12,IJ00011058,8.8,ESPO, 
East Lindsey District Council,http://statistics.data.gov.uk/id/local-authority/32UC,DEPT,Furniture and Equipment,21/06/12,IJ00011058,236,ESPO, 
East Lindsey District Council,http://statistics.data.gov.uk/id/local-authority/32UC,DEPT,Computer Software Licence Costs,21/06/12,IJ00010980,530,EXCITECH TECHNOLOGY FOR DESIGN, 
East Lindsey District Council,http://statistics.data.gov.uk/id/local-authority/32UC,DEPT,Grants and Contributions to Outside Bodies- No Service Recei,21/06/12,IJ00010914,4000,FURNICHURCH, 
East Lindsey District Council,http://statistics.data.gov.uk/id/local-authority/32UC,DEPT,Furniture and Equipment,21/06/12,IJ00011054,2715,GECKO LTD, 
East Lindsey District Council,http://statistics.data.gov.uk/id/local-authority/32UC,DEPT,Commercial Vehicle Lease,21/06/12,IJ00010801,2551.74,GREAT COATES MOTORS LTD, 
East Lindsey District Council,http://statistics.data.gov.uk/id/local-authority/32UC,DEPT,Commercial Vehicle Lease,21/06/12,IJ00010950,2551.74,GREAT COATES MOTORS LTD, 
East Lindsey District Council,http://statistics.data.gov.uk/id/local-authority/32UC,Capital WIP,Grants and Contributions to Outside Bodies- No Service Recei,21/06/12,IJ00011015,1580,HALLMARK SUNDECKS LTD, 
East Lindsey District Council,http://statistics.data.gov.uk/id/local-authority/32UC,Capital WIP,Works to Buildings (main Contractor),21/06/12,IJ00010899,15858.72,HARLITE INSTALLATIONS LTD, 
East Lindsey District Council,http://statistics.data.gov.uk/id/local-authority/32UC,DEPT,Buildings Maintenance - Responsive,21/06/12,IJ00010901,3334.05,HARLITE INSTALLATIONS LTD, 
East Lindsey District Council,http://statistics.data.gov.uk/id/local-authority/32UC,DEPT,Buildings Maintenance - Responsive,21/06/12,IJ00010901,1781.68,HARLITE INSTALLATIONS LTD, 
East Lindsey District Council,http://statistics.data.gov.uk/id/local-authority/32UC,DEPT,Buildings Maintenance - Responsive,21/06/12,IJ00010901,93.34,HARLITE INSTALLATIONS LTD, 
East Lindsey District Council,http://statistics.data.gov.uk/id/local-authority/32UC,DEPT,Buildings Maintenance - Responsive,21/06/12,IJ00010901,185.72,HARLITE INSTALLATIONS LTD, 
East Lindsey District Council,http://statistics.data.gov.uk/id/local-authority/32UC,DEPT,Buildings Maintenance - Responsive,21/06/12,IJ00010901,170.92,HARLITE INSTALLATIONS LTD, 
East Lindsey District Council,http://statistics.data.gov.uk/id/local-authority/32UC,DEPT,Buildings Maintenance - Programmed,21/06/12,IJ00010901,439.99,HARLITE INSTALLATIONS LTD, 
East Lindsey District Council,http://statistics.data.gov.uk/id/local-authority/32UC,DEPT,Buildings Maintenance - Responsive,21/06/12,IJ00010901,71.68,HARLITE INSTALLATIONS LTD, 
East Lindsey District Council,http://statistics.data.gov.uk/id/local-authority/32UC,DEPT,Buildings Maintenance - Responsive,21/06/12,IJ00010901,42.73,HARLITE INSTALLATIONS LTD, 
East Lindsey District Council,http://statistics.data.gov.uk/id/local-authority/32UC,DEPT,Other Miscellaneous Expenses,21/06/12,IJ00010901,1140,HARLITE INSTALLATIONS LTD, 
East Lindsey District Council,http://statistics.data.gov.uk/id/local-authority/32UC,DEPT,Buildings Maintenance - Responsive,21/06/12,IJ00010902,215.62,HARLITE INSTALLATIONS LTD, 
East Lindsey District Council,http://statistics.data.gov.uk/id/local-authority/32UC,DEPT,Buildings Maintenance - Responsive,21/06/12,IJ00010902,85.46,HARLITE INSTALLATIONS LTD, 
East Lindsey District Council,http://statistics.data.gov.uk/id/local-authority/32UC,DEPT,Buildings Maintenance - Responsive,21/06/12,IJ00010902,2675.6,HARLITE INSTALLATIONS LTD, 
East Lindsey District Council,http://statistics.data.gov.uk/id/local-authority/32UC,DEPT,Buildings Maintenance - Responsive,21/06/12,IJ00010902,18.02,HARLITE INSTALLATIONS LTD, 
East Lindsey District Council,http://statistics.data.gov.uk/id/local-authority/32UC,DEPT,Buildings Maintenance - Responsive,21/06/12,IJ00010902,186.09,HARLITE INSTALLATIONS LTD, 
East Lindsey District Council,http://statistics.data.gov.uk/id/local-authority/32UC,DEPT,Buildings Maintenance - Programmed,21/06/12,IJ00010902,880,HARLITE INSTALLATIONS LTD, 
East Lindsey District Council,http://statistics.data.gov.uk/id/local-authority/32UC,DEPT,Buildings Maintenance - Responsive,21/06/12,IJ00010902,46.48,HARLITE INSTALLATIONS LTD, 
East Lindsey District Council,http://statistics.data.gov.uk/id/local-authority/32UC,DEPT,Buildings Maintenance - Responsive,21/06/12,IJ00010902,38.7,HARLITE INSTALLATIONS LTD, 
East Lindsey District Council,http://statistics.data.gov.uk/id/local-authority/32UC,DEPT,Buildings Maintenance - Programmed,21/06/12,IJ00010902,540,HARLITE INSTALLATIONS LTD, 
East Lindsey District Council,http://statistics.data.gov.uk/id/local-authority/32UC,DEPT,Buildings Maintenance - Responsive,21/06/12,IJ00010902,27.69,HARLITE INSTALLATIONS LTD, 
East Lindsey District Council,http://statistics.data.gov.uk/id/local-authority/32UC,DEPT,Buildings Maintenance - Responsive,21/06/12,IJ00010902,38.76,HARLITE INSTALLATIONS LTD, 
East Lindsey District Council,http://statistics.data.gov.uk/id/local-authority/32UC,DEPT,Buildings Maintenance - Responsive,21/06/12,IJ00010902,61.38,HARLITE INSTALLATIONS LTD, 
East Lindsey District Council,http://statistics.data.gov.uk/id/local-authority/32UC,DEPT,Buildings Maintenance - Responsive,21/06/12,IJ00010902,43.36,HARLITE INSTALLATIONS LTD, 
East Lindsey District Council,http://statistics.data.gov.uk/id/local-authority/32UC,DEPT,Grants and Contributions to Outside Bodies- No Service Recei,21/06/12,IJ00011055,580,HILL & CLARK, 
East Lindsey District Council,http://statistics.data.gov.uk/id/local-authority/32UC,DEPT,Computer Software Licence Costs,21/06/12,IJ00010996,17820,IHS (GLOBAL) LTD, 
East Lindsey District Council,http://statistics.data.gov.uk/id/local-authority/32UC,DEPT,Materials and Consumables,21/06/12,IJ00010985,1178.99,INSIGHT DIRECT (UK) LTD, 
East Lindsey District Council,http://statistics.data.gov.uk/id/local-authority/32UC,DEPT,Computer Hardware Purchase,21/06/12,IJ00010978,70.77,INSIGHT DIRECT (UK) LTD, 
East Lindsey District Council,http://statistics.data.gov.uk/id/local-authority/32UC,DEPT,Computer Hardware Purchase,21/06/12,IJ00010978,473.95,INSIGHT DIRECT (UK) LTD, 
East Lindsey District Council,http://statistics.data.gov.uk/id/local-authority/32UC,Capital WIP,Works to Buildings (main Contractor),21/06/12,IJ00010784,1450,J H ATKINSON & SON, 
East Lindsey District Council,http://statistics.data.gov.uk/id/local-authority/32UC,DEPT,Other Miscellaneous Expenses,21/06/12,IJ00011048,19976.5,LINCOLNSHIRE COUNTY COUNCIL, 
East Lindsey District Council,http://statistics.data.gov.uk/id/local-authority/32UC,DEPT,Employer's Retirement Benefit Cost,21/06/12,IJ00010775,12409.65,LINCOLNSHIRE COUNTY COUNCIL PENSION FUND, 
East Lindsey District Council,http://statistics.data.gov.uk/id/local-authority/32UC,Capital WIP,Grants and Contributions to Outside Bodies- No Service Recei,21/06/12,IJ00010958,1750,LUXURY SUNDECKS, 
East Lindsey District Council,http://statistics.data.gov.uk/id/local-authority/32UC,DEPT,Professional & Contractors Fees,21/06/12,IJ00010964,2824,MARK FORT GARDENING, 
East Lindsey District Council,http://statistics.data.gov.uk/id/local-authority/32UC,DEPT,Performers and Entertainers Fees,21/06/12,IJ00010920,1807.89,MARK LUNDQUIST MANAGEMENT, 
East Lindsey District Council,http://statistics.data.gov.uk/id/local-authority/32UC,DEPT,Performers and Entertainers Fees,21/06/12,IJ00010920,-300,MARK LUNDQUIST MANAGEMENT, 
East Lindsey District Council,http://statistics.data.gov.uk/id/local-authority/32UC,DEPT,Commercial Vehicle Lease,21/06/12,IJ00010944,5204.83,MAY GURNEY FLEET & PASSENGER SERVICES LTD, 
East Lindsey District Council,http://statistics.data.gov.uk/id/local-authority/32UC,DEPT,Commercial Vehicle Lease,21/06/12,IJ00010944,5,MAY GURNEY FLEET & PASSENGER SERVICES LTD, 
East Lindsey District Council,http://statistics.data.gov.uk/id/local-authority/32UC,DEPT,Commercial Vehicle Lease,21/06/12,IJ00010945,5204.83,MAY GURNEY FLEET & PASSENGER SERVICES LTD, 
East Lindsey District Council,http://statistics.data.gov.uk/id/local-authority/32UC,DEPT,Commercial Vehicle Lease,21/06/12,IJ00010945,5,MAY GURNEY FLEET & PASSENGER SERVICES LTD, 
East Lindsey District Council,http://statistics.data.gov.uk/id/local-authority/32UC,DEPT,Commercial Vehicle Lease,21/06/12,IJ00010946,5204.83,MAY GURNEY FLEET & PASSENGER SERVICES LTD, 
East Lindsey District Council,http://statistics.data.gov.uk/id/local-authority/32UC,DEPT,Commercial Vehicle Lease,21/06/12,IJ00010946,5,MAY GURNEY FLEET & PASSENGER SERVICES LTD, 
East Lindsey District Council,http://statistics.data.gov.uk/id/local-authority/32UC,DEPT,Commercial Vehicle Lease,21/06/12,IJ00010947,8204.83,MAY GURNEY FLEET & PASSENGER SERVICES LTD, 
East Lindsey District Council,http://statistics.data.gov.uk/id/local-authority/32UC,DEPT,Commercial Vehicle Lease,21/06/12,IJ00010947,5,MAY GURNEY FLEET & PASSENGER SERVICES LTD, 
East Lindsey District Council,http://statistics.data.gov.uk/id/local-authority/32UC,DEPT,Commercial Vehicle Lease,21/06/12,IJ00010948,5248.76,MAY GURNEY FLEET & PASSENGER SERVICES LTD, 
East Lindsey District Council,http://statistics.data.gov.uk/id/local-authority/32UC,DEPT,Commercial Vehicle Lease,21/06/12,IJ00010948,5,MAY GURNEY FLEET & PASSENGER SERVICES LTD, 
East Lindsey District Council,http://statistics.data.gov.uk/id/local-authority/32UC,DEPT,Performers and Entertainers Fees,21/06/12,IJ00010917,2850.23,MORNINGSIDE MANAGEMENT LTD, 
East Lindsey District Council,http://statistics.data.gov.uk/id/local-authority/32UC,DEPT,Performers and Entertainers Fees,21/06/12,IJ00010917,-210,MORNINGSIDE MANAGEMENT LTD, 
East Lindsey District Council,http://statistics.data.gov.uk/id/local-authority/32UC,DEPT,Telephones,21/06/12,IJ00010989,176.4,MULTIDATA (EUROPE), 
East Lindsey District Council,http://statistics.data.gov.uk/id/local-authority/32UC,DEPT,Telephones,21/06/12,IJ00010989,176.4,MULTIDATA (EUROPE), 
East Lindsey District Council,http://statistics.data.gov.uk/id/local-authority/32UC,DEPT,Telephones,21/06/12,IJ00010989,176.4,MULTIDATA (EUROPE), 
East Lindsey District Council,http://statistics.data.gov.uk/id/local-authority/32UC,DEPT,Telephones,21/06/12,IJ00010989,176.4,MULTIDATA (EUROPE), 
East Lindsey District Council,http://statistics.data.gov.uk/id/local-authority/32UC,DEPT,Computer Hardware Purchase,21/06/12,IJ00010994,651.75,MULTIDATA (EUROPE), 
East Lindsey District Council,http://statistics.data.gov.uk/id/local-authority/32UC,DEPT,Advertising - Events,21/06/12,IJ00010974,500,NORTHCLIFFE MEDIA LIMITED, 
East Lindsey District Council,http://statistics.data.gov.uk/id/local-authority/32UC,DEPT,Computer Software Licence Costs,21/06/12,IJ00010988,1512.39,ORCHARD INFORMATION SYSTEMS LIMITED, 
East Lindsey District Council,http://statistics.data.gov.uk/id/local-authority/32UC,DEPT,Performers and Entertainers Fees,21/06/12,IJ00010928,7412.29,PMG LIVE LTD, 
East Lindsey District Council,http://statistics.data.gov.uk/id/local-authority/32UC,DEPT,Performers and Entertainers Fees,21/06/12,IJ00010928,-150,PMG LIVE LTD, 
East Lindsey District Council,http://statistics.data.gov.uk/id/local-authority/32UC,DEPT,Performers and Entertainers Fees,21/06/12,IJ00010922,2431.21,PREMIER STAGE PRODUCTIONS LTD, 
East Lindsey District Council,http://statistics.data.gov.uk/id/local-authority/32UC,DEPT,Performers and Entertainers Fees,21/06/12,IJ00010922,-210,PREMIER STAGE PRODUCTIONS LTD, 
East Lindsey District Council,http://statistics.data.gov.uk/id/local-authority/32UC,DEPT,Furniture and Equipment,21/06/12,IJ00011009,890,PRINTFORCE (STAFFS) LTD, 
East Lindsey District Council,http://statistics.data.gov.uk/id/local-authority/32UC,DEPT,Grants and Contributions to Outside Bodies- No Service Recei,21/06/12,IJ00010776,732.56,RBS INVOICE FINANCE LIMITED, 
East Lindsey District Council,http://statistics.data.gov.uk/id/local-authority/32UC,DEPT,Performers and Entertainers Fees,21/06/12,IJ00010808,1100,Rhubarb Theatre, 
East Lindsey District Council,http://statistics.data.gov.uk/id/local-authority/32UC,DEPT,Professional & Contractors Fees,21/06/12,IJ00010979,1000,RMS MANAGED IT SECURITY LTD, 
East Lindsey District Council,http://statistics.data.gov.uk/id/local-authority/32UC,DEPT,Professional & Contractors Fees,21/06/12,IJ00010982,3300,RMS MANAGED IT SECURITY LTD, 
East Lindsey District Council,http://statistics.data.gov.uk/id/local-authority/32UC,Development Control,Postages,21/06/12,IJ00011034,250.05,ROYAL MAIL, 
East Lindsey District Council,http://statistics.data.gov.uk/id/local-authority/32UC,DEPT,Postages,21/06/12,IJ00010781,506.61,ROYAL MAIL, 
East Lindsey District Council,http://statistics.data.gov.uk/id/local-authority/32UC,DEPT,Postages,21/06/12,IJ00011034,25.65,ROYAL MAIL, 
East Lindsey District Council,http://statistics.data.gov.uk/id/local-authority/32UC,DEPT,Postages,21/06/12,IJ00011034,16.82,ROYAL MAIL, 
East Lindsey District Council,http://statistics.data.gov.uk/id/local-authority/32UC,DEPT,Postages,21/06/12,IJ00011034,466.81,ROYAL MAIL, 
East Lindsey District Council,http://statistics.data.gov.uk/id/local-authority/32UC,DEPT,Postages,21/06/12,IJ00011034,316.34,ROYAL MAIL, 
East Lindsey District Council,http://statistics.data.gov.uk/id/local-authority/32UC,DEPT,Postages,21/06/12,IJ00011034,4.58,ROYAL MAIL, 
East Lindsey District Council,http://statistics.data.gov.uk/id/local-authority/32UC,DEPT,Other Miscellaneous Expenses,21/06/12,IJ00011034,89.33,ROYAL MAIL, 
East Lindsey District Council,http://statistics.data.gov.uk/id/local-authority/32UC,DEPT,Other Miscellaneous Expenses,21/06/12,IJ00011034,52.02,ROYAL MAIL, 
East Lindsey District Council,http://statistics.data.gov.uk/id/local-authority/32UC,DEPT,Postages,21/06/12,IJ00011037,61.93,ROYAL MAIL, 
East Lindsey District Council,http://statistics.data.gov.uk/id/local-authority/32UC,DEPT,Postages,21/06/12,IJ00011037,14.1,ROYAL MAIL, 
East Lindsey District Council,http://statistics.data.gov.uk/id/local-authority/32UC,DEPT,Postages,21/06/12,IJ00011037,689.05,ROYAL MAIL, 
East Lindsey District Council,http://statistics.data.gov.uk/id/local-authority/32UC,DEPT,Postages,21/06/12,IJ00011037,276.34,ROYAL MAIL, 
East Lindsey District Council,http://statistics.data.gov.uk/id/local-authority/32UC,DEPT,Other Miscellaneous Expenses,21/06/12,IJ00011037,699.19,ROYAL MAIL, 
East Lindsey District Council,http://statistics.data.gov.uk/id/local-authority/32UC,DEPT,Other Miscellaneous Expenses,21/06/12,IJ00011037,271.58,ROYAL MAIL, 
East Lindsey District Council,http://statistics.data.gov.uk/id/local-authority/32UC,DEPT,Other Miscellaneous Expenses,21/06/12,IJ00011037,66.27,ROYAL MAIL, 
East Lindsey District Council,http://statistics.data.gov.uk/id/local-authority/32UC,DEPT,Postages,21/06/12,IJ00011041,128.75,ROYAL MAIL, 
East Lindsey District Council,http://statistics.data.gov.uk/id/local-authority/32UC,DEPT,Postages,21/06/12,IJ00011041,18.55,ROYAL MAIL, 
East Lindsey District Council,http://statistics.data.gov.uk/id/local-authority/32UC,DEPT,Postages,21/06/12,IJ00011041,1788.17,ROYAL MAIL, 
East Lindsey District Council,http://statistics.data.gov.uk/id/local-authority/32UC,DEPT,Postages,21/06/12,IJ00011041,311.94,ROYAL MAIL, 
East Lindsey District Council,http://statistics.data.gov.uk/id/local-authority/32UC,DEPT,Postages,21/06/12,IJ00011041,20.64,ROYAL MAIL, 
East Lindsey District Council,http://statistics.data.gov.uk/id/local-authority/32UC,DEPT,Other Miscellaneous Expenses,21/06/12,IJ00011041,913.33,ROYAL MAIL, 
East Lindsey District Council,http://statistics.data.gov.uk/id/local-authority/32UC,DEPT,Other Miscellaneous Expenses,21/06/12,IJ00011041,374.36,ROYAL MAIL, 
East Lindsey District Council,http://statistics.data.gov.uk/id/local-authority/32UC,DEPT,Other Miscellaneous Expenses,21/06/12,IJ00011041,443.27,ROYAL MAIL, 
East Lindsey District Council,http://statistics.data.gov.uk/id/local-authority/32UC,DEPT,Postages,21/06/12,IJ00011045,252.39,ROYAL MAIL, 
East Lindsey District Council,http://statistics.data.gov.uk/id/local-authority/32UC,DEPT,Postages,21/06/12,IJ00011045,75.15,ROYAL MAIL, 
East Lindsey District Council,http://statistics.data.gov.uk/id/local-authority/32UC,DEPT,Postages,21/06/12,IJ00011045,522.65,ROYAL MAIL, 
East Lindsey District Council,http://statistics.data.gov.uk/id/local-authority/32UC,DEPT,Postages,21/06/12,IJ00011045,895.93,ROYAL MAIL, 
East Lindsey District Council,http://statistics.data.gov.uk/id/local-authority/32UC,DEPT,Postages,21/06/12,IJ00011045,24.23,ROYAL MAIL, 
East Lindsey District Council,http://statistics.data.gov.uk/id/local-authority/32UC,DEPT,Other Miscellaneous Expenses,21/06/12,IJ00011045,811.58,ROYAL MAIL, 
East Lindsey District Council,http://statistics.data.gov.uk/id/local-authority/32UC,DEPT,Other Miscellaneous Expenses,21/06/12,IJ00011045,334.46,ROYAL MAIL, 
East Lindsey District Council,http://statistics.data.gov.uk/id/local-authority/32UC,DEPT,Other Miscellaneous Expenses,21/06/12,IJ00011045,58.32,ROYAL MAIL, 
East Lindsey District Council,http://statistics.data.gov.uk/id/local-authority/32UC,Capital WIP,Grants and Contributions to Outside Bodies- No Service Recei,21/06/12,IJ00010959,4839.83,SIBJON BUILDERS, 
East Lindsey District Council,http://statistics.data.gov.uk/id/local-authority/32UC,Capital WIP,Grants and Contributions to Outside Bodies- No Service Recei,21/06/12,IJ00011017,4092.94,SIBJON BUILDERS, 
East Lindsey District Council,http://statistics.data.gov.uk/id/local-authority/32UC,DEPT,Other Income,21/06/12,IJ00010959,-706.06,SIBJON BUILDERS, 
East Lindsey District Council,http://statistics.data.gov.uk/id/local-authority/32UC,DEPT,Other Income,21/06/12,IJ00011017,-365.44,SIBJON BUILDERS, 
East Lindsey District Council,http://statistics.data.gov.uk/id/local-authority/32UC,DEPT,Computer Software Licence Costs,21/06/12,IJ00010997,2945.82,SIEMENS FINANCIAL SERVICES LTD, 
East Lindsey District Council,http://statistics.data.gov.uk/id/local-authority/32UC,DEPT,Professional & Contractors Fees,21/06/12,IJ00010774,1720,SOUTH HOLLAND DISTRICT COUNCIL, 
East Lindsey District Council,http://statistics.data.gov.uk/id/local-authority/32UC,DEPT,Gas,21/06/12,IJ00010887,7758.59,SOUTHERN ELECTRIC PLC, 
East Lindsey District Council,http://statistics.data.gov.uk/id/local-authority/32UC,DEPT,Materials and Consumables,21/06/12,IJ00010814,733.4,STOWLIN LTD, 
East Lindsey District Council,http://statistics.data.gov.uk/id/local-authority/32UC,DEPT,Materials and Consumables,21/06/12,IJ00010814,366.7,STOWLIN LTD, 
East Lindsey District Council,http://statistics.data.gov.uk/id/local-authority/32UC,DEPT,Materials and Consumables,21/06/12,IJ00010815,545.3,STOWLIN LTD, 
East Lindsey District Council,http://statistics.data.gov.uk/id/local-authority/32UC,DEPT,Materials and Consumables,21/06/12,IJ00011059,585.92,STOWLIN LTD, 
East Lindsey District Council,http://statistics.data.gov.uk/id/local-authority/32UC,DEPT,Grants and Contributions to Outside Bodies- No Service Recei,21/06/12,IJ00010912,2000,TEAM PARISH OF LOUTH, 
East Lindsey District Council,http://statistics.data.gov.uk/id/local-authority/32UC,DEPT,Performers and Entertainers Fees,21/06/12,IJ00010923,578.68,THE COMEDY TEA HOUSE, 
East Lindsey District Council,http://statistics.data.gov.uk/id/local-authority/32UC,DEPT,Other Miscellaneous Expenses,21/06/12,IJ00010926,500,THE SKEGNESS BRASS BAN FESTIVAL COMMITTEE, 
East Lindsey District Council,http://statistics.data.gov.uk/id/local-authority/32UC,DEPT,Agency Staff,21/06/12,IJ00010957,2916.76,THE WORKSHOP (WISBECH) LIMITED, 
East Lindsey District Council,http://statistics.data.gov.uk/id/local-authority/32UC,DEPT,Buildings Maintenance - Programmed,21/06/12,IJ00010900,184.35,THYSSENKRUPP ELEVATOR UK LTD, 
East Lindsey District Council,http://statistics.data.gov.uk/id/local-authority/32UC,DEPT,Buildings Maintenance - Programmed,21/06/12,IJ00010900,184.35,THYSSENKRUPP ELEVATOR UK LTD, 
East Lindsey District Council,http://statistics.data.gov.uk/id/local-authority/32UC,DEPT,Buildings Maintenance - Programmed,21/06/12,IJ00010900,233.4,THYSSENKRUPP ELEVATOR UK LTD, 
East Lindsey District Council,http://statistics.data.gov.uk/id/local-authority/32UC,DEPT,Commercial Vehicle Lease,21/06/12,IJ00010942,83.19,TJS, 
East Lindsey District Council,http://statistics.data.gov.uk/id/local-authority/32UC,DEPT,Maintenance,21/06/12,IJ00010942,436.18,TJS, 
East Lindsey District Council,http://statistics.data.gov.uk/id/local-authority/32UC,DEPT,Performers and Entertainers Fees,21/06/12,IJ00010921,1269.98,TONY CLAYMAN PROMOTIONS LTD, 
East Lindsey District Council,http://statistics.data.gov.uk/id/local-authority/32UC,DEPT,Performers and Entertainers Fees,21/06/12,IJ00010921,-150,TONY CLAYMAN PROMOTIONS LTD, 
East Lindsey District Council,http://statistics.data.gov.uk/id/local-authority/32UC,DEPT,Clothing Uniforms And Laundry,21/06/12,IJ00011008,1247.4,VANESSA HALLAM, 
East Lindsey District Council,http://statistics.data.gov.uk/id/local-authority/32UC,DEPT,Grounds Maintenance Contract (External),21/06/12,IJ00010861,1110,VEOLIA ES (UK) LTD, 
East Lindsey District Council,http://statistics.data.gov.uk/id/local-authority/32UC,BM Regulatory Services,Telephones,21/06/12,IJ00010859,22,VODAFONE CORPORATE LIMITED, 
East Lindsey District Council,http://statistics.data.gov.uk/id/local-authority/32UC,Building Control,Telephones,21/06/12,IJ00010859,6.03,VODAFONE CORPORATE LIMITED, 
East Lindsey District Council,http://statistics.data.gov.uk/id/local-authority/32UC,Building Control Partnership,Telephones,21/06/12,IJ00010859,269.46,VODAFONE CORPORATE LIMITED, 
East Lindsey District Council,http://statistics.data.gov.uk/id/local-authority/32UC,Building Control Partnership,Telephones,21/06/12,IJ00010859,194.18,VODAFONE CORPORATE LIMITED, 
East Lindsey District Council,http://statistics.data.gov.uk/id/local-authority/32UC,Chief Executive,Telephones,21/06/12,IJ00010859,36,VODAFONE CORPORATE LIMITED, 
East Lindsey District Council,http://statistics.data.gov.uk/id/local-authority/32UC,Chief Executive,Telephones,21/06/12,IJ00010859,10.51,VODAFONE CORPORATE LIMITED, 
East Lindsey District Council,http://statistics.data.gov.uk/id/local-authority/32UC,Chief Executive,Telephones,21/06/12,IJ00010859,12.62,VODAFONE CORPORATE LIMITED, 
East Lindsey District Council,http://statistics.data.gov.uk/id/local-authority/32UC,Chief Executive,Telephones,21/06/12,IJ00010859,101.27,VODAFONE CORPORATE LIMITED, 
East Lindsey District Council,http://statistics.data.gov.uk/id/local-authority/32UC,Development Control,Telephones,21/06/12,IJ00010859,42.57,VODAFONE CORPORATE LIMITED, 
East Lindsey District Council,http://statistics.data.gov.uk/id/local-authority/32UC,Sports Development,Telephones,21/06/12,IJ00010859,33.08,VODAFONE CORPORATE LIMITED, 
East Lindsey District Council,http://statistics.data.gov.uk/id/local-authority/32UC,Sports Development,Telephones,21/06/12,IJ00010859,23.03,VODAFONE CORPORATE LIMITED, 
East Lindsey District Council,http://statistics.data.gov.uk/id/local-authority/32UC,Sports Development,Telephones,21/06/12,IJ00010859,4,VODAFONE CORPORATE LIMITED, 
East Lindsey District Council,http://statistics.data.gov.uk/id/local-authority/32UC,Sports Development,Telephones,21/06/12,IJ00010859,32.38,VODAFONE CORPORATE LIMITED, 
East Lindsey District Council,http://statistics.data.gov.uk/id/local-authority/32UC,Sports Development,Telephones,21/06/12,IJ00010859,4,VODAFONE CORPORATE LIMITED, 
East Lindsey District Council,http://statistics.data.gov.uk/id/local-authority/32UC,Sports Development,Telephones,21/06/12,IJ00010859,48.08,VODAFONE CORPORATE LIMITED, 
East Lindsey District Council,http://statistics.data.gov.uk/id/local-authority/32UC,Sports Development,Telephones,21/06/12,IJ00010859,2.76,VODAFONE CORPORATE LIMITED, 
East Lindsey District Council,http://statistics.data.gov.uk/id/local-authority/32UC,Strategic Director (JF),Telephones,21/06/12,IJ00010859,9.5,VODAFONE CORPORATE LIMITED, 
East Lindsey District Council,http://statistics.data.gov.uk/id/local-authority/32UC,Strategic Director (SD),Telephones,21/06/12,IJ00010859,21.47,VODAFONE CORPORATE LIMITED, 
East Lindsey District Council,http://statistics.data.gov.uk/id/local-authority/32UC,DEPT,Telephones,21/06/12,IJ00010859,23.97,VODAFONE CORPORATE LIMITED, 
East Lindsey District Council,http://statistics.data.gov.uk/id/local-authority/32UC,DEPT,Telephones,21/06/12,IJ00010859,19.41,VODAFONE CORPORATE LIMITED, 
East Lindsey District Council,http://statistics.data.gov.uk/id/local-authority/32UC,DEPT,Telephones,21/06/12,IJ00010859,5.51,VODAFONE CORPORATE LIMITED, 
East Lindsey District Council,http://statistics.data.gov.uk/id/local-authority/32UC,DEPT,Telephones,21/06/12,IJ00010859,21.23,VODAFONE CORPORATE LIMITED, 
East Lindsey District Council,http://statistics.data.gov.uk/id/local-authority/32UC,DEPT,Telephones,21/06/12,IJ00010859,4,VODAFONE CORPORATE LIMITED, 
East Lindsey District Council,http://statistics.data.gov.uk/id/local-authority/32UC,DEPT,Telephones,21/06/12,IJ00010859,2,VODAFONE CORPORATE LIMITED, 
East Lindsey District Council,http://statistics.data.gov.uk/id/local-authority/32UC,DEPT,Telephones,21/06/12,IJ00010859,2,VODAFONE CORPORATE LIMITED, 
East Lindsey District Council,http://statistics.data.gov.uk/id/local-authority/32UC,DEPT,Telephones,21/06/12,IJ00010859,166.4,VODAFONE CORPORATE LIMITED, 
East Lindsey District Council,http://statistics.data.gov.uk/id/local-authority/32UC,DEPT,Telephones,21/06/12,IJ00010859,2,VODAFONE CORPORATE LIMITED, 
East Lindsey District Council,http://statistics.data.gov.uk/id/local-authority/32UC,DEPT,Telephones,21/06/12,IJ00010859,5.24,VODAFONE CORPORATE LIMITED, 
East Lindsey District Council,http://statistics.data.gov.uk/id/local-authority/32UC,DEPT,Telephones,21/06/12,IJ00010859,11.92,VODAFONE CORPORATE LIMITED, 
East Lindsey District Council,http://statistics.data.gov.uk/id/local-authority/32UC,DEPT,Telephones,21/06/12,IJ00010859,6,VODAFONE CORPORATE LIMITED, 
East Lindsey District Council,http://statistics.data.gov.uk/id/local-authority/32UC,DEPT,Telephones,21/06/12,IJ00010859,56.98,VODAFONE CORPORATE LIMITED, 
East Lindsey District Council,http://statistics.data.gov.uk/id/local-authority/32UC,DEPT,Telephones,21/06/12,IJ00010859,109.48,VODAFONE CORPORATE LIMITED, 
East Lindsey District Council,http://statistics.data.gov.uk/id/local-authority/32UC,DEPT,Telephones,21/06/12,IJ00010859,2.22,VODAFONE CORPORATE LIMITED, 
East Lindsey District Council,http://statistics.data.gov.uk/id/local-authority/32UC,DEPT,Telephones,21/06/12,IJ00010859,333.76,VODAFONE CORPORATE LIMITED, 
East Lindsey District Council,http://statistics.data.gov.uk/id/local-authority/32UC,DEPT,Telephones,21/06/12,IJ00010859,9.16,VODAFONE CORPORATE LIMITED, 
East Lindsey District Council,http://statistics.data.gov.uk/id/local-authority/32UC,DEPT,Telephones,21/06/12,IJ00010859,2,VODAFONE CORPORATE LIMITED, 
East Lindsey District Council,http://statistics.data.gov.uk/id/local-authority/32UC,DEPT,Telephones,21/06/12,IJ00010859,26.92,VODAFONE CORPORATE LIMITED, 
East Lindsey District Council,http://statistics.data.gov.uk/id/local-authority/32UC,DEPT,Telephones,21/06/12,IJ00010859,20,VODAFONE CORPORATE LIMITED, 
East Lindsey District Council,http://statistics.data.gov.uk/id/local-authority/32UC,DEPT,Telephones,21/06/12,IJ00010859,5.51,VODAFONE CORPORATE LIMITED, 
East Lindsey District Council,http://statistics.data.gov.uk/id/local-authority/32UC,DEPT,Telephones,21/06/12,IJ00010859,2,VODAFONE CORPORATE LIMITED, 
East Lindsey District Council,http://statistics.data.gov.uk/id/local-authority/32UC,DEPT,Telephones,21/06/12,IJ00010859,2,VODAFONE CORPORATE LIMITED, 
East Lindsey District Council,http://statistics.data.gov.uk/id/local-authority/32UC,DEPT,Telephones,21/06/12,IJ00010859,29.63,VODAFONE CORPORATE LIMITED, 
East Lindsey District Council,http://statistics.data.gov.uk/id/local-authority/32UC,DEPT,Telephones,21/06/12,IJ00010859,13.5,VODAFONE CORPORATE LIMITED, 
East Lindsey District Council,http://statistics.data.gov.uk/id/local-authority/32UC,DEPT,Telephones,21/06/12,IJ00010859,71.4,VODAFONE CORPORATE LIMITED, 
East Lindsey District Council,http://statistics.data.gov.uk/id/local-authority/32UC,DEPT,Telephones,21/06/12,IJ00010859,6.92,VODAFONE CORPORATE LIMITED, 
East Lindsey District Council,http://statistics.data.gov.uk/id/local-authority/32UC,DEPT,Telephones,21/06/12,IJ00010859,4.03,VODAFONE CORPORATE LIMITED, 
East Lindsey District Council,http://statistics.data.gov.uk/id/local-authority/32UC,DEPT,Telephones,21/06/12,IJ00010859,34.53,VODAFONE CORPORATE LIMITED, 
East Lindsey District Council,http://statistics.data.gov.uk/id/local-authority/32UC,DEPT,Telephones,21/06/12,IJ00010859,2,VODAFONE CORPORATE LIMITED, 
East Lindsey District Council,http://statistics.data.gov.uk/id/local-authority/32UC,DEPT,Telephones,21/06/12,IJ00010859,41.2,VODAFONE CORPORATE LIMITED, 
East Lindsey District Council,http://statistics.data.gov.uk/id/local-authority/32UC,DEPT,Telephones,21/06/12,IJ00010859,56.13,VODAFONE CORPORATE LIMITED, 
East Lindsey District Council,http://statistics.data.gov.uk/id/local-authority/32UC,DEPT,Telephones,21/06/12,IJ00010859,119.27,VODAFONE CORPORATE LIMITED, 
East Lindsey District Council,http://statistics.data.gov.uk/id/local-authority/32UC,DEPT,Telephones,21/06/12,IJ00010859,85,VODAFONE CORPORATE LIMITED, 
East Lindsey District Council,http://statistics.data.gov.uk/id/local-authority/32UC,DEPT,Telephones,21/06/12,IJ00010859,236.25,VODAFONE CORPORATE LIMITED, 
East Lindsey District Council,http://statistics.data.gov.uk/id/local-authority/32UC,DEPT,Telephones,21/06/12,IJ00010859,30.46,VODAFONE CORPORATE LIMITED, 
East Lindsey District Council,http://statistics.data.gov.uk/id/local-authority/32UC,DEPT,Telephones,21/06/12,IJ00010859,177.73,VODAFONE CORPORATE LIMITED, 
East Lindsey District Council,http://statistics.data.gov.uk/id/local-authority/32UC,DEPT,Telephones,21/06/12,IJ00010859,11.7,VODAFONE CORPORATE LIMITED, 
East Lindsey District Council,http://statistics.data.gov.uk/id/local-authority/32UC,DEPT,Telephones,21/06/12,IJ00010859,2,VODAFONE CORPORATE LIMITED, 
East Lindsey District Council,http://statistics.data.gov.uk/id/local-authority/32UC,DEPT,Telephones,21/06/12,IJ00010859,9.51,VODAFONE CORPORATE LIMITED, 
East Lindsey District Council,http://statistics.data.gov.uk/id/local-authority/32UC,DEPT,Telephones,21/06/12,IJ00010859,4,VODAFONE CORPORATE LIMITED, 
East Lindsey District Council,http://statistics.data.gov.uk/id/local-authority/32UC,DEPT,Telephones,21/06/12,IJ00010859,2,VODAFONE CORPORATE LIMITED, 
East Lindsey District Council,http://statistics.data.gov.uk/id/local-authority/32UC,DEPT,Telephones,21/06/12,IJ00010859,8.43,VODAFONE CORPORATE LIMITED, 
East Lindsey District Council,http://statistics.data.gov.uk/id/local-authority/32UC,DEPT,Telephones,21/06/12,IJ00010859,16.93,VODAFONE CORPORATE LIMITED, 
East Lindsey District Council,http://statistics.data.gov.uk/id/local-authority/32UC,DEPT,Telephones,21/06/12,IJ00010859,7.73,VODAFONE CORPORATE LIMITED, 
East Lindsey District Council,http://statistics.data.gov.uk/id/local-authority/32UC,DEPT,Telephones,21/06/12,IJ00010859,64.58,VODAFONE CORPORATE LIMITED, 
East Lindsey District Council,http://statistics.data.gov.uk/id/local-authority/32UC,DEPT,Telephones,21/06/12,IJ00010859,6.07,VODAFONE CORPORATE LIMITED, 
East Lindsey District Council,http://statistics.data.gov.uk/id/local-authority/32UC,DEPT,Telephones,21/06/12,IJ00010859,5.5,VODAFONE CORPORATE LIMITED, 
East Lindsey District Council,http://statistics.data.gov.uk/id/local-authority/32UC,DEPT,Telephones,21/06/12,IJ00010859,44.62,VODAFONE CORPORATE LIMITED, 
East Lindsey District Council,http://statistics.data.gov.uk/id/local-authority/32UC,DEPT,Telephones,21/06/12,IJ00010859,15.5,VODAFONE CORPORATE LIMITED, 
East Lindsey District Council,http://statistics.data.gov.uk/id/local-authority/32UC,DEPT,Telephones,21/06/12,IJ00010859,84.88,VODAFONE CORPORATE LIMITED, 
East Lindsey District Council,http://statistics.data.gov.uk/id/local-authority/32UC,DEPT,Telephones,21/06/12,IJ00010859,27.77,VODAFONE CORPORATE LIMITED, 
East Lindsey District Council,http://statistics.data.gov.uk/id/local-authority/32UC,DEPT,Telephones,21/06/12,IJ00010859,15.44,VODAFONE CORPORATE LIMITED, 
East Lindsey District Council,http://statistics.data.gov.uk/id/local-authority/32UC,DEPT,Telephones,21/06/12,IJ00010859,37.02,VODAFONE CORPORATE LIMITED, 
East Lindsey District Council,http://statistics.data.gov.uk/id/local-authority/32UC,DEPT,Telephones,21/06/12,IJ00010859,4,VODAFONE CORPORATE LIMITED, 
East Lindsey District Council,http://statistics.data.gov.uk/id/local-authority/32UC,DEPT,Telephones,21/06/12,IJ00010859,11.46,VODAFONE CORPORATE LIMITED, 
East Lindsey District Council,http://statistics.data.gov.uk/id/local-authority/32UC,DEPT,Telephones,21/06/12,IJ00010859,10.25,VODAFONE CORPORATE LIMITED, 
East Lindsey District Council,http://statistics.data.gov.uk/id/local-authority/32UC,DEPT,Telephones,21/06/12,IJ00010859,261.22,VODAFONE CORPORATE LIMITED, 
East Lindsey District Council,http://statistics.data.gov.uk/id/local-authority/32UC,DEPT,Telephones,21/06/12,IJ00010859,68.01,VODAFONE CORPORATE LIMITED, 
East Lindsey District Council,http://statistics.data.gov.uk/id/local-authority/32UC,DEPT,Telephones,21/06/12,IJ00010859,17.15,VODAFONE CORPORATE LIMITED, 
East Lindsey District Council,http://statistics.data.gov.uk/id/local-authority/32UC,DEPT,Telephones,21/06/12,IJ00010859,24.21,VODAFONE CORPORATE LIMITED, 
East Lindsey District Council,http://statistics.data.gov.uk/id/local-authority/32UC,DEPT,Telephones,21/06/12,IJ00010859,2.6,VODAFONE CORPORATE LIMITED, 
East Lindsey District Council,http://statistics.data.gov.uk/id/local-authority/32UC,DEPT,Telephones,21/06/12,IJ00010859,2,VODAFONE CORPORATE LIMITED, 
East Lindsey District Council,http://statistics.data.gov.uk/id/local-authority/32UC,DEPT,Telephones,21/06/12,IJ00010859,6.58,VODAFONE CORPORATE LIMITED, 
East Lindsey District Council,http://statistics.data.gov.uk/id/local-authority/32UC,DEPT,Telephones,21/06/12,IJ00010859,2,VODAFONE CORPORATE LIMITED, 
East Lindsey District Council,http://statistics.data.gov.uk/id/local-authority/32UC,DEPT,Telephones,21/06/12,IJ00010859,2,VODAFONE CORPORATE LIMITED, 
East Lindsey District Council,http://statistics.data.gov.uk/id/local-authority/32UC,DEPT,Telephones,21/06/12,IJ00010859,2,VODAFONE CORPORATE LIMITED, 
East Lindsey District Council,http://statistics.data.gov.uk/id/local-authority/32UC,DEPT,Telephones,21/06/12,IJ00010859,20,VODAFONE CORPORATE LIMITED, 
East Lindsey District Council,http://statistics.data.gov.uk/id/local-authority/32UC,DEPT,Telephones,21/06/12,IJ00010859,2,VODAFONE CORPORATE LIMITED, 
East Lindsey District Council,http://statistics.data.gov.uk/id/local-authority/32UC,DEPT,Telephones,21/06/12,IJ00010859,6.1,VODAFONE CORPORATE LIMITED, 
East Lindsey District Council,http://statistics.data.gov.uk/id/local-authority/32UC,DEPT,Telephones,21/06/12,IJ00010859,9.5,VODAFONE CORPORATE LIMITED, 
East Lindsey District Council,http://statistics.data.gov.uk/id/local-authority/32UC,DEPT,Telephones,21/06/12,IJ00010859,51.1,VODAFONE CORPORATE LIMITED, 
East Lindsey District Council,http://statistics.data.gov.uk/id/local-authority/32UC,DEPT,Telephones,21/06/12,IJ00010859,12.7,VODAFONE CORPORATE LIMITED, 
East Lindsey District Council,http://statistics.data.gov.uk/id/local-authority/32UC,DEPT,Telephones,21/06/12,IJ00010859,2,VODAFONE CORPORATE LIMITED, 
East Lindsey District Council,http://statistics.data.gov.uk/id/local-authority/32UC,DEPT,Telephones,21/06/12,IJ00010859,2,VODAFONE CORPORATE LIMITED, 
East Lindsey District Council,http://statistics.data.gov.uk/id/local-authority/32UC,DEPT,Telephones,21/06/12,IJ00010859,19.51,VODAFONE CORPORATE LIMITED, 
East Lindsey District Council,http://statistics.data.gov.uk/id/local-authority/32UC,DEPT,Telephones,21/06/12,IJ00010859,11.27,VODAFONE CORPORATE LIMITED, 
East Lindsey District Council,http://statistics.data.gov.uk/id/local-authority/32UC,DEPT,Telephones,21/06/12,IJ00010859,13.43,VODAFONE CORPORATE LIMITED, 
East Lindsey District Council,http://statistics.data.gov.uk/id/local-authority/32UC,DEPT,Telephones,21/06/12,IJ00010859,9.63,VODAFONE CORPORATE LIMITED, 
East Lindsey District Council,http://statistics.data.gov.uk/id/local-authority/32UC,DEPT,Telephones,21/06/12,IJ00010859,15.87,VODAFONE CORPORATE LIMITED, 
East Lindsey District Council,http://statistics.data.gov.uk/id/local-authority/32UC,DEPT,Telephones,21/06/12,IJ00010859,10.71,VODAFONE CORPORATE LIMITED, 
East Lindsey District Council,http://statistics.data.gov.uk/id/local-authority/32UC,DEPT,Telephones,21/06/12,IJ00010859,105.38,VODAFONE CORPORATE LIMITED, 
East Lindsey District Council,http://statistics.data.gov.uk/id/local-authority/32UC,DEPT,Telephones,21/06/12,IJ00010859,25.91,VODAFONE CORPORATE LIMITED, 
East Lindsey District Council,http://statistics.data.gov.uk/id/local-authority/32UC,DEPT,Telephones,21/06/12,IJ00010859,4,VODAFONE CORPORATE LIMITED, 
East Lindsey District Council,http://statistics.data.gov.uk/id/local-authority/32UC,DEPT,Telephones,21/06/12,IJ00010859,1.16,VODAFONE CORPORATE LIMITED, 
East Lindsey District Council,http://statistics.data.gov.uk/id/local-authority/32UC,DEPT,Telephones,21/06/12,IJ00010859,2,VODAFONE CORPORATE LIMITED, 
East Lindsey District Council,http://statistics.data.gov.uk/id/local-authority/32UC,DEPT,Telephones,21/06/12,IJ00010859,7.52,VODAFONE CORPORATE LIMITED, 
East Lindsey District Council,http://statistics.data.gov.uk/id/local-authority/32UC,DEPT,Telephones,21/06/12,IJ00010859,117.28,VODAFONE CORPORATE LIMITED, 
East Lindsey District Council,http://statistics.data.gov.uk/id/local-authority/32UC,DEPT,Telephones,21/06/12,IJ00010859,8.38,VODAFONE CORPORATE LIMITED, 
East Lindsey District Council,http://statistics.data.gov.uk/id/local-authority/32UC,DEPT,Telephones,21/06/12,IJ00010859,16.26,VODAFONE CORPORATE LIMITED, 
East Lindsey District Council,http://statistics.data.gov.uk/id/local-authority/32UC,DEPT,Telephones,21/06/12,IJ00010859,4.61,VODAFONE CORPORATE LIMITED, 
East Lindsey District Council,http://statistics.data.gov.uk/id/local-authority/32UC,DEPT,Telephones,21/06/12,IJ00010859,15.77,VODAFONE CORPORATE LIMITED, 
East Lindsey District Council,http://statistics.data.gov.uk/id/local-authority/32UC,DEPT,Telephones,21/06/12,IJ00010859,146.91,VODAFONE CORPORATE LIMITED, 
East Lindsey District Council,http://statistics.data.gov.uk/id/local-authority/32UC,DEPT,Telephones,21/06/12,IJ00010859,2,VODAFONE CORPORATE LIMITED, 
East Lindsey District Council,http://statistics.data.gov.uk/id/local-authority/32UC,DEPT,Telephones,21/06/12,IJ00010859,9.5,VODAFONE CORPORATE LIMITED, 
East Lindsey District Council,http://statistics.data.gov.uk/id/local-authority/32UC,DEPT,Telephones,21/06/12,IJ00010859,10.81,VODAFONE CORPORATE LIMITED, 
East Lindsey District Council,http://statistics.data.gov.uk/id/local-authority/32UC,DEPT,Fuel & Oil,21/06/12,IJ00010806,13494,WATSON PETROLEUM LTD, 
East Lindsey District Council,http://statistics.data.gov.uk/id/local-authority/32UC,DEPT,Grants and Contributions to Outside Bodies- No Service Recei,21/06/12,IJ00011053,505,WILLSONS ESTATE AGENTS, 
East Lindsey District Council,http://statistics.data.gov.uk/id/local-authority/32UC,DEPT,Payments to Bodies in Respect of Income Collected,21/06/12,IJ00010400,74101.33,ZURICH ASSURANCE LTD, 
East Lindsey District Council,http://statistics.data.gov.uk/id/local-authority/32UC,DEPT,Buildings Maintenance - Responsive,28/06/12,IJ00011168,619.81,AIRCO INSTALLATIONS LTD, 
East Lindsey District Council,http://statistics.data.gov.uk/id/local-authority/32UC,DEPT,Buildings Maintenance - Responsive,28/06/12,IJ00011171,827.6,ALLDREAD MAINTENANCE SERVICES, 
East Lindsey District Council,http://statistics.data.gov.uk/id/local-authority/32UC,DEPT,Buildings Maintenance - Responsive,28/06/12,IJ00011172,836.34,ALLDREAD MAINTENANCE SERVICES, 
East Lindsey District Council,http://statistics.data.gov.uk/id/local-authority/32UC,DEPT,Buildings Maintenance - Responsive,28/06/12,IJ00011179,902.48,AMBER LOCKSMITHS LIMITED, 
East Lindsey District Council,http://statistics.data.gov.uk/id/local-authority/32UC,DEPT,Water and Sewerage Charges,28/06/12,IJ00011149,8166.53,ANGLIAN WATER, 
East Lindsey District Council,http://statistics.data.gov.uk/id/local-authority/32UC,DEPT,Water and Sewerage Charges,28/06/12,IJ00011154,801.12,ANGLIAN WATER, 
East Lindsey District Council,http://statistics.data.gov.uk/id/local-authority/32UC,DEPT,Water and Sewerage Charges,28/06/12,IJ00011155,2860.62,ANGLIAN WATER, 
East Lindsey District Council,http://statistics.data.gov.uk/id/local-authority/32UC,DEPT,Water and Sewerage Charges,28/06/12,IJ00011156,685.08,ANGLIAN WATER, 
East Lindsey District Council,http://statistics.data.gov.uk/id/local-authority/32UC,DEPT,Water and Sewerage Charges,28/06/12,IJ00011161,1506.79,ANGLIAN WATER, 
East Lindsey District Council,http://statistics.data.gov.uk/id/local-authority/32UC,DEPT,Other Private Contractors,28/06/12,IJ00010931,1200,ARNOLD FUNERAL SERVICE, 
East Lindsey District Council,http://statistics.data.gov.uk/id/local-authority/32UC,DEPT,Bed and Breakfast Accommodation (Homelessness Service),28/06/12,IJ00011304,600,BEESTON LODGE HOTEL, 
East Lindsey District Council,http://statistics.data.gov.uk/id/local-authority/32UC,DEPT,Bed and Breakfast Accommodation (Homelessness Service),28/06/12,IJ00011307,630,BEESTON LODGE HOTEL, 
East Lindsey District Council,http://statistics.data.gov.uk/id/local-authority/32UC,DEPT,Electricity,28/06/12,IJ00011285,119.01,BRITISH GAS, 
East Lindsey District Council,http://statistics.data.gov.uk/id/local-authority/32UC,DEPT,Electricity,28/06/12,IJ00011285,-24.12,BRITISH GAS, 
East Lindsey District Council,http://statistics.data.gov.uk/id/local-authority/32UC,DEPT,Gas,28/06/12,IJ00011285,639.75,BRITISH GAS, 
East Lindsey District Council,http://statistics.data.gov.uk/id/local-authority/32UC,DEPT,Gas,28/06/12,IJ00011285,-24.13,BRITISH GAS, 
East Lindsey District Council,http://statistics.data.gov.uk/id/local-authority/32UC,DEPT,Court Costs,28/06/12,IJ00011110,1365,CENTRAL FINANCE UNIT, 
East Lindsey District Council,http://statistics.data.gov.uk/id/local-authority/32UC,DEPT,Court Costs,28/06/12,IJ00011110,342,CENTRAL FINANCE UNIT, 
East Lindsey District Council,http://statistics.data.gov.uk/id/local-authority/32UC,DEPT,Other Miscellaneous Expenses,28/06/12,IJ00011292,1000,COASTAL RECOVERIES, 
East Lindsey District Council,http://statistics.data.gov.uk/id/local-authority/32UC,DEPT,Other agencies,28/06/12,IJ00011081,6491.15,COMPETITION LINE (UK) LTD, 
East Lindsey District Council,http://statistics.data.gov.uk/id/local-authority/32UC,DEPT,Payroll-Net Pay,28/06/12,IJ00011316,760172.48,EAST LINDSEY DISTRICT COUNCIL, 
East Lindsey District Council,http://statistics.data.gov.uk/id/local-authority/32UC,DEPT,Payroll-Cons Group Savings,28/06/12,IJ00011228,1000,ELDC CONSERVATIVE GROUP, 
East Lindsey District Council,http://statistics.data.gov.uk/id/local-authority/32UC,DEPT,Performers and Entertainers Fees,28/06/12,IJ00011199,3816.6,ETM LIMITED, 
East Lindsey District Council,http://statistics.data.gov.uk/id/local-authority/32UC,DEPT,Performers and Entertainers Fees,28/06/12,IJ00011199,-150,ETM LIMITED, 
East Lindsey District Council,http://statistics.data.gov.uk/id/local-authority/32UC,DEPT,Buildings Maintenance - Programmed,28/06/12,IJ00011167,3575,EUROTECH ENVIRONMENTAL LTD, 
East Lindsey District Council,http://statistics.data.gov.uk/id/local-authority/32UC,DEPT,Grants and Contributions to Outside Bodies- No Service Recei,28/06/12,IJ00011229,898.85,FOCUS SIGNS (LINCOLNSHIRE) LTD, 
East Lindsey District Council,http://statistics.data.gov.uk/id/local-authority/32UC,DEPT,Payroll-Gmbatu,28/06/12,IJ00011211,733.38,GMB NATIONAL ADMINISTRATION UNIT, 
East Lindsey District Council,http://statistics.data.gov.uk/id/local-authority/32UC,DEPT,Buildings Maintenance - Programmed,28/06/12,IJ00011239,1500,H20 SERVICING LTD, 
East Lindsey District Council,http://statistics.data.gov.uk/id/local-authority/32UC,DEPT,Advertising - Events,28/06/12,IJ00011122,545,HOLIDAY MAKER GUIDE, 
East Lindsey District Council,http://statistics.data.gov.uk/id/local-authority/32UC,DEPT,Performers and Entertainers Fees,28/06/12,IJ00011198,2470.22,HOUSEFULL PRODUCTIONS LTD, 
East Lindsey District Council,http://statistics.data.gov.uk/id/local-authority/32UC,DEPT,Performers and Entertainers Fees,28/06/12,IJ00011198,-826.4,HOUSEFULL PRODUCTIONS LTD, 
East Lindsey District Council,http://statistics.data.gov.uk/id/local-authority/32UC,DEPT,Buildings Maintenance - Programmed,28/06/12,IJ00011165,1610,J E SPENCE & SON LTD, 
East Lindsey District Council,http://statistics.data.gov.uk/id/local-authority/32UC,DEPT,Buildings Maintenance - Programmed,28/06/12,IJ00011234,8485.6,J TOMLINSON LTD, 
East Lindsey District Council,http://statistics.data.gov.uk/id/local-authority/32UC,DEPT,Advertising - Events,28/06/12,IJ00011079,3330,LAVA, 
East Lindsey District Council,http://statistics.data.gov.uk/id/local-authority/32UC,DEPT,Professional & Contractors Fees,28/06/12,IJ00011094,3126,LINCOLNSHIRE COUNTY COUNCIL, 
East Lindsey District Council,http://statistics.data.gov.uk/id/local-authority/32UC,DEPT,Lincolnshire Legal Services,28/06/12,IJ00011095,19231.26,LINCOLNSHIRE COUNTY COUNCIL, 
East Lindsey District Council,http://statistics.data.gov.uk/id/local-authority/32UC,DEPT,Lincolnshire Legal Services,28/06/12,IJ00011095,1965,LINCOLNSHIRE COUNTY COUNCIL, 
East Lindsey District Council,http://statistics.data.gov.uk/id/local-authority/32UC,DEPT,Lincolnshire Legal Services,28/06/12,IJ00011095,-50,LINCOLNSHIRE COUNTY COUNCIL, 
East Lindsey District Council,http://statistics.data.gov.uk/id/local-authority/32UC,DEPT,Other agencies,28/06/12,IJ00011276,8333.34,LINCOLNSHIRE CVS, 
East Lindsey District Council,http://statistics.data.gov.uk/id/local-authority/32UC,DEPT,Internal Drainage Board Levies,28/06/12,IJ00011312,621926.5,LINDSEY MARSH DRAINAGE BOARD, 
East Lindsey District Council,http://statistics.data.gov.uk/id/local-authority/32UC,DEPT,Advertising - Legal And Public,28/06/12,IJ00011070,585,LOVEN PATENTS & TRADEMARKS, 
East Lindsey District Council,http://statistics.data.gov.uk/id/local-authority/32UC,DEPT,Professional & Contractors Fees,28/06/12,IJ00011294,661,LOVEN PATENTS & TRADEMARKS, 
East Lindsey District Council,http://statistics.data.gov.uk/id/local-authority/32UC,DEPT,Commercial Vehicle Lease,28/06/12,IJ00011232,308.65,MAY GURNEY FLEET & PASSENGER SERVICES LTD, 
East Lindsey District Council,http://statistics.data.gov.uk/id/local-authority/32UC,DEPT,Commercial Vehicle Lease,28/06/12,IJ00011232,80525.8,MAY GURNEY FLEET & PASSENGER SERVICES LTD, 
East Lindsey District Council,http://statistics.data.gov.uk/id/local-authority/32UC,DEPT,Commercial Vehicle Lease,28/06/12,IJ00011232,2807,MAY GURNEY FLEET & PASSENGER SERVICES LTD, 
East Lindsey District Council,http://statistics.data.gov.uk/id/local-authority/32UC,DEPT,Commercial Vehicle Lease,28/06/12,IJ00011232,2807,MAY GURNEY FLEET & PASSENGER SERVICES LTD, 
East Lindsey District Council,http://statistics.data.gov.uk/id/local-authority/32UC,DEPT,Commercial Vehicle Lease,28/06/12,IJ00011232,436.93,MAY GURNEY FLEET & PASSENGER SERVICES LTD, 
East Lindsey District Council,http://statistics.data.gov.uk/id/local-authority/32UC,DEPT,Commercial Vehicle Lease,28/06/12,IJ00011232,31537.43,MAY GURNEY FLEET & PASSENGER SERVICES LTD, 
East Lindsey District Council,http://statistics.data.gov.uk/id/local-authority/32UC,DEPT,Commercial Vehicle Lease,28/06/12,IJ00011232,18676.96,MAY GURNEY FLEET & PASSENGER SERVICES LTD, 
East Lindsey District Council,http://statistics.data.gov.uk/id/local-authority/32UC,DEPT,Commercial Vehicle Lease,28/06/12,IJ00011232,1693.17,MAY GURNEY FLEET & PASSENGER SERVICES LTD, 
East Lindsey District Council,http://statistics.data.gov.uk/id/local-authority/32UC,DEPT,Commercial Vehicle Lease,28/06/12,IJ00011232,376.97,MAY GURNEY FLEET & PASSENGER SERVICES LTD, 
East Lindsey District Council,http://statistics.data.gov.uk/id/local-authority/32UC,Building Control,Buildings Maintenance - Responsive,28/06/12,IJ00011166,1127.2,MIDLANDS SIGNS (LEICESTER) LTD, 
East Lindsey District Council,http://statistics.data.gov.uk/id/local-authority/32UC,DEPT,Performers and Entertainers Fees,28/06/12,IJ00011200,3873.05,MORNINGSIDE MANAGEMENT LTD, 
East Lindsey District Council,http://statistics.data.gov.uk/id/local-authority/32UC,DEPT,Performers and Entertainers Fees,28/06/12,IJ00011200,-210,MORNINGSIDE MANAGEMENT LTD, 
East Lindsey District Council,http://statistics.data.gov.uk/id/local-authority/32UC,DEPT,Other Miscellaneous Expenses,28/06/12,IJ00011280,2975,NATHANIEL LICHFIELD & PARTNERS, 
East Lindsey District Council,http://statistics.data.gov.uk/id/local-authority/32UC,DEPT,Film and Entertainment Costs,28/06/12,IJ00011217,5400,NORTHCLIFFE MEDIA LIMITED, 
East Lindsey District Council,http://statistics.data.gov.uk/id/local-authority/32UC,DEPT,Materials and Consumables,28/06/12,IJ00011067,500,NPS HUMBER LTD, 
East Lindsey District Council,http://statistics.data.gov.uk/id/local-authority/32UC,DEPT,Performers and Entertainers Fees,28/06/12,IJ00011201,1750,ORIGINAL ENTERTAINMENT PROGRAMMING LTD, 
East Lindsey District Council,http://statistics.data.gov.uk/id/local-authority/32UC,Capital WIP,Works to Buildings (main Contractor),28/06/12,IJ00011207,2645,PELL PLANT HIRE LTD, 
East Lindsey District Council,http://statistics.data.gov.uk/id/local-authority/32UC,DEPT,Postages,28/06/12,IJ00011287,600,POSTAGE BY PHONE - PITNEY BOWES PLC, 
East Lindsey District Council,http://statistics.data.gov.uk/id/local-authority/32UC,DEPT,Other agencies,28/06/12,IJ00011063,853.5,PROTOUCH SECURITY LTD, 
East Lindsey District Council,http://statistics.data.gov.uk/id/local-authority/32UC,DEPT,Payroll-Avc,28/06/12,IJ00011213,1479.96,PRUDENTIAL PENSION FUND SERVICES, 
East Lindsey District Council,http://statistics.data.gov.uk/id/local-authority/32UC,DEPT,Other agencies,28/06/12,IJ00011078,59420.19,ROYAL NATIONAL LIFEBOAT INSTITUTE, 
East Lindsey District Council,http://statistics.data.gov.uk/id/local-authority/32UC,DEPT,Buildings Maintenance - Programmed,28/06/12,IJ00011147,900.23,SEYMOUR & CASTLE LTD, 
East Lindsey District Council,http://statistics.data.gov.uk/id/local-authority/32UC,DEPT,Performers and Entertainers Fees,28/06/12,IJ00011196,2440.56,SHOWDOWN MUSIC LTD, 
East Lindsey District Council,http://statistics.data.gov.uk/id/local-authority/32UC,DEPT,Performers and Entertainers Fees,28/06/12,IJ00011196,-150,SHOWDOWN MUSIC LTD, 
East Lindsey District Council,http://statistics.data.gov.uk/id/local-authority/32UC,DEPT,Electricity,28/06/12,IJ00011181,22.96,SOUTHERN ELECTRIC PLC, 
East Lindsey District Council,http://statistics.data.gov.uk/id/local-authority/32UC,DEPT,Electricity,28/06/12,IJ00011181,1411.27,SOUTHERN ELECTRIC PLC, 
East Lindsey District Council,http://statistics.data.gov.uk/id/local-authority/32UC,DEPT,Electricity,28/06/12,IJ00011181,350.43,SOUTHERN ELECTRIC PLC, 
East Lindsey District Council,http://statistics.data.gov.uk/id/local-authority/32UC,DEPT,Electricity,28/06/12,IJ00011181,129.72,SOUTHERN ELECTRIC PLC, 
East Lindsey District Council,http://statistics.data.gov.uk/id/local-authority/32UC,DEPT,Electricity,28/06/12,IJ00011181,787.45,SOUTHERN ELECTRIC PLC, 
East Lindsey District Council,http://statistics.data.gov.uk/id/local-authority/32UC,DEPT,Electricity,28/06/12,IJ00011181,467.46,SOUTHERN ELECTRIC PLC, 
East Lindsey District Council,http://statistics.data.gov.uk/id/local-authority/32UC,DEPT,Electricity,28/06/12,IJ00011181,809.07,SOUTHERN ELECTRIC PLC, 
East Lindsey District Council,http://statistics.data.gov.uk/id/local-authority/32UC,DEPT,Electricity,28/06/12,IJ00011181,163.32,SOUTHERN ELECTRIC PLC, 
East Lindsey District Council,http://statistics.data.gov.uk/id/local-authority/32UC,DEPT,Electricity,28/06/12,IJ00011181,69.99,SOUTHERN ELECTRIC PLC, 
East Lindsey District Council,http://statistics.data.gov.uk/id/local-authority/32UC,DEPT,Electricity,28/06/12,IJ00011181,161.34,SOUTHERN ELECTRIC PLC, 
East Lindsey District Council,http://statistics.data.gov.uk/id/local-authority/32UC,DEPT,Electricity,28/06/12,IJ00011182,2626.09,SOUTHERN ELECTRIC PLC, 
East Lindsey District Council,http://statistics.data.gov.uk/id/local-authority/32UC,DEPT,Electricity,28/06/12,IJ00011182,900.29,SOUTHERN ELECTRIC PLC, 
East Lindsey District Council,http://statistics.data.gov.uk/id/local-authority/32UC,DEPT,Electricity,28/06/12,IJ00011182,220.39,SOUTHERN ELECTRIC PLC, 
East Lindsey District Council,http://statistics.data.gov.uk/id/local-authority/32UC,DEPT,Electricity,28/06/12,IJ00011182,388.94,SOUTHERN ELECTRIC PLC, 
East Lindsey District Council,http://statistics.data.gov.uk/id/local-authority/32UC,DEPT,Electricity,28/06/12,IJ00011182,88.19,SOUTHERN ELECTRIC PLC, 
East Lindsey District Council,http://statistics.data.gov.uk/id/local-authority/32UC,DEPT,Electricity,28/06/12,IJ00011182,644.83,SOUTHERN ELECTRIC PLC, 
East Lindsey District Council,http://statistics.data.gov.uk/id/local-authority/32UC,DEPT,Electricity,28/06/12,IJ00011182,88.16,SOUTHERN ELECTRIC PLC, 
East Lindsey District Council,http://statistics.data.gov.uk/id/local-authority/32UC,DEPT,Electricity,28/06/12,IJ00011182,247.86,SOUTHERN ELECTRIC PLC, 
East Lindsey District Council,http://statistics.data.gov.uk/id/local-authority/32UC,DEPT,Electricity,28/06/12,IJ00011182,573.01,SOUTHERN ELECTRIC PLC, 
East Lindsey District Council,http://statistics.data.gov.uk/id/local-authority/32UC,DEPT,Electricity,28/06/12,IJ00011182,49.06,SOUTHERN ELECTRIC PLC, 
East Lindsey District Council,http://statistics.data.gov.uk/id/local-authority/32UC,DEPT,Electricity,28/06/12,IJ00011183,3780.97,SOUTHERN ELECTRIC PLC, 
East Lindsey District Council,http://statistics.data.gov.uk/id/local-authority/32UC,DEPT,Electricity,28/06/12,IJ00011183,497.04,SOUTHERN ELECTRIC PLC, 
East Lindsey District Council,http://statistics.data.gov.uk/id/local-authority/32UC,DEPT,Electricity,28/06/12,IJ00011183,409.12,SOUTHERN ELECTRIC PLC, 
East Lindsey District Council,http://statistics.data.gov.uk/id/local-authority/32UC,DEPT,Electricity,28/06/12,IJ00011183,326.43,SOUTHERN ELECTRIC PLC, 
East Lindsey District Council,http://statistics.data.gov.uk/id/local-authority/32UC,DEPT,Electricity,28/06/12,IJ00011183,5322.12,SOUTHERN ELECTRIC PLC, 
East Lindsey District Council,http://statistics.data.gov.uk/id/local-authority/32UC,DEPT,Electricity,28/06/12,IJ00011183,45.41,SOUTHERN ELECTRIC PLC, 
East Lindsey District Council,http://statistics.data.gov.uk/id/local-authority/32UC,DEPT,Electricity,28/06/12,IJ00011183,7511.7,SOUTHERN ELECTRIC PLC, 
East Lindsey District Council,http://statistics.data.gov.uk/id/local-authority/32UC,DEPT,Electricity,28/06/12,IJ00011183,21.84,SOUTHERN ELECTRIC PLC, 
East Lindsey District Council,http://statistics.data.gov.uk/id/local-authority/32UC,DEPT,Electricity,28/06/12,IJ00011183,708.39,SOUTHERN ELECTRIC PLC, 
East Lindsey District Council,http://statistics.data.gov.uk/id/local-authority/32UC,DEPT,Electricity,28/06/12,IJ00011183,154.39,SOUTHERN ELECTRIC PLC, 
East Lindsey District Council,http://statistics.data.gov.uk/id/local-authority/32UC,DEPT,Electricity,28/06/12,IJ00011184,263.35,SOUTHERN ELECTRIC PLC, 
East Lindsey District Council,http://statistics.data.gov.uk/id/local-authority/32UC,DEPT,Electricity,28/06/12,IJ00011184,-8.88,SOUTHERN ELECTRIC PLC, 
East Lindsey District Council,http://statistics.data.gov.uk/id/local-authority/32UC,DEPT,Electricity,28/06/12,IJ00011184,146.4,SOUTHERN ELECTRIC PLC, 
East Lindsey District Council,http://statistics.data.gov.uk/id/local-authority/32UC,DEPT,Electricity,28/06/12,IJ00011184,4400.13,SOUTHERN ELECTRIC PLC, 
East Lindsey District Council,http://statistics.data.gov.uk/id/local-authority/32UC,DEPT,Electricity,28/06/12,IJ00011184,1418.06,SOUTHERN ELECTRIC PLC, 
East Lindsey District Council,http://statistics.data.gov.uk/id/local-authority/32UC,DEPT,Electricity,28/06/12,IJ00011184,24.53,SOUTHERN ELECTRIC PLC, 
East Lindsey District Council,http://statistics.data.gov.uk/id/local-authority/32UC,DEPT,Electricity,28/06/12,IJ00011184,54.47,SOUTHERN ELECTRIC PLC, 
East Lindsey District Council,http://statistics.data.gov.uk/id/local-authority/32UC,DEPT,Performers and Entertainers Fees,28/06/12,IJ00011195,2583.26,SWEENEY ENTERTAINMENTS, 
East Lindsey District Council,http://statistics.data.gov.uk/id/local-authority/32UC,DEPT,Performers and Entertainers Fees,28/06/12,IJ00011195,-252,SWEENEY ENTERTAINMENTS, 
East Lindsey District Council,http://statistics.data.gov.uk/id/local-authority/32UC,Sports Development,Fuel & Oil,28/06/12,IJ00011190,130.52,THE RIGHT FUELCARD COMPANY LTD, 
East Lindsey District Council,http://statistics.data.gov.uk/id/local-authority/32UC,DEPT,Fuel & Oil,28/06/12,IJ00011190,1564.13,THE RIGHT FUELCARD COMPANY LTD, 
East Lindsey District Council,http://statistics.data.gov.uk/id/local-authority/32UC,DEPT,Fuel & Oil,28/06/12,IJ00011190,106.99,THE RIGHT FUELCARD COMPANY LTD, 
East Lindsey District Council,http://statistics.data.gov.uk/id/local-authority/32UC,DEPT,Fuel & Oil,28/06/12,IJ00011190,1367.59,THE RIGHT FUELCARD COMPANY LTD, 
East Lindsey District Council,http://statistics.data.gov.uk/id/local-authority/32UC,DEPT,Fuel & Oil,28/06/12,IJ00011190,421.2,THE RIGHT FUELCARD COMPANY LTD, 
East Lindsey District Council,http://statistics.data.gov.uk/id/local-authority/32UC,DEPT,Fuel & Oil,28/06/12,IJ00011190,235.68,THE RIGHT FUELCARD COMPANY LTD, 
East Lindsey District Council,http://statistics.data.gov.uk/id/local-authority/32UC,DEPT,Fuel & Oil,28/06/12,IJ00011190,107.15,THE RIGHT FUELCARD COMPANY LTD, 
East Lindsey District Council,http://statistics.data.gov.uk/id/local-authority/32UC,DEPT,Fuel & Oil,28/06/12,IJ00011190,783.71,THE RIGHT FUELCARD COMPANY LTD, 
East Lindsey District Council,http://statistics.data.gov.uk/id/local-authority/32UC,DEPT,Fuel & Oil,28/06/12,IJ00011190,3319.87,THE RIGHT FUELCARD COMPANY LTD, 
East Lindsey District Council,http://statistics.data.gov.uk/id/local-authority/32UC,DEPT,Fuel & Oil,28/06/12,IJ00011190,373.37,THE RIGHT FUELCARD COMPANY LTD, 
East Lindsey District Council,http://statistics.data.gov.uk/id/local-authority/32UC,DEPT,Fuel & Oil,28/06/12,IJ00011190,427.81,THE RIGHT FUELCARD COMPANY LTD, 
East Lindsey District Council,http://statistics.data.gov.uk/id/local-authority/32UC,DEPT,Fuel & Oil,28/06/12,IJ00011190,266.09,THE RIGHT FUELCARD COMPANY LTD, 
East Lindsey District Council,http://statistics.data.gov.uk/id/local-authority/32UC,DEPT,Fuel & Oil,28/06/12,IJ00011190,107.61,THE RIGHT FUELCARD COMPANY LTD, 
East Lindsey District Council,http://statistics.data.gov.uk/id/local-authority/32UC,DEPT,Fuel & Oil,28/06/12,IJ00011190,240.34,THE RIGHT FUELCARD COMPANY LTD, 
East Lindsey District Council,http://statistics.data.gov.uk/id/local-authority/32UC,DEPT,Fuel & Oil,28/06/12,IJ00011190,132.75,THE RIGHT FUELCARD COMPANY LTD, 
East Lindsey District Council,http://statistics.data.gov.uk/id/local-authority/32UC,DEPT,Fuel & Oil,28/06/12,IJ00011190,16.45,THE RIGHT FUELCARD COMPANY LTD, 
East Lindsey District Council,http://statistics.data.gov.uk/id/local-authority/32UC,DEPT,Fuel & Oil,28/06/12,IJ00011190,116.29,THE RIGHT FUELCARD COMPANY LTD, 
East Lindsey District Council,http://statistics.data.gov.uk/id/local-authority/32UC,DEPT,Payroll-Unison,28/06/12,IJ00011231,1723.15,UNISON, 
East Lindsey District Council,http://statistics.data.gov.uk/id/local-authority/32UC,DEPT,Other Miscellaneous Expenses,28/06/12,IJ00011065,1120.5,VENDING ENTERPRISES, 
East Lindsey District Council,http://statistics.data.gov.uk/id/local-authority/32UC,DEPT,Fuel & Oil,28/06/12,IJ00011123,3255,WATSON PETROLEUM LTD, 
East Lindsey District Council,http://statistics.data.gov.uk/id/local-authority/32UC,DEPT,Fuel & Oil,28/06/12,IJ00011124,23871.09,WATSON PETROLEUM LTD, 
East Lindsey District Council,http://statistics.data.gov.uk/id/local-authority/32UC,DEPT,Fuel & Oil,28/06/12,IJ00011125,642.7,WATSON PETROLEUM LTD, 
East Lindsey District Council,http://statistics.data.gov.uk/id/local-authority/32UC,DEPT,Buildings Maintenance - Programmed,28/06/12,IJ00011164,790.45,XYLEM WATER SOLUTIONS UK LTD, 
